Cogmind - Beta 16 @@@ ROGUE MODE // 2025.11.14 @ 21:33:53 Player: GiggleBox Result: Destroyed by Combat Programmer with EMDS Performance ------------- Evolutions (9) 4500 Regions Visited (36) 7200 Robots Destroyed (367) 1835 Value Destroyed (14466) 14466 Prototype IDs (70) 1400 Alien Tech Used (4) 800 Bonus (16745) 16745 TOTAL SCORE: 46946 Bonus ------- High Alert Combat Kills 865 Follower Combat Kills 2204 Entered Garrisons 400 Met Data Miner 300 Acquired ECA 300 Met Zhirov 300 Met Warlord at Base 500 MAIN.C Attacked Warlord 500 Warlord Defense Kills 1214 Built Enhanced Grunts 300 Met R17 at Cetus 500 Met Warlord at Research 2000 Invited to Help at Command 2000 Scanned by Researcher 500 Met MAIN.C 5000 Met Warlord at Command 2000 Friendly Fire -2138 Cogmind --------- Core Integrity 0/1600 Matter 295/300 Energy 100/100 System Corruption 22% Temperature Warm (193) Movement Core (100) Ox1 Location -1/Command Parts ------- > --- POWER (3) -------- (None) > --- PROPULSION (8) --- (None) > --- UTILITY (10) ----- Experimental Optical Array Advanced Signal Interpreter Weapon Mount Graphene Brace > --- WEAPON (4) ------- (None) > --- INVENTORY (5) ---- Electron Diverter Advanced Point Defense System Enhanced Gamma Bomb Array Peak State ------------ > --- POWER ------------ Light Antimatter Reactor Micro Antimatter Reactor Micro Antimatter Reactor > --- PROPULSION ------- Field Propulsion Array Field Propulsion Array Diametric Drive Improved Diametric Drive Impulse Thruster Array > --- UTILITY ---------- Medium Storage Unit Gravity Neutralizer Experimental Optical Array Experimental Sensor Array Advanced Signal Interpreter Weapon Mount Core Analyzer Improved Armor Integrity Analyzer Advanced Transmission Jammer Advanced Reaction Control System > --- WEAPON ----------- Core Cannon Sigix Broadsword > --- INVENTORY -------- Electron Diverter Advanced Phase Shifter Graphene Brace Advanced Point Defense System Advanced Hacking Suite Subatomic Replicator Enhanced Hardcell Cannon Enhanced Gamma Bomb Array [Rating: 206] Favorites ----------- Power Cooled Ion Engine Engine Cooled Ion Engine Power Core Micro Nuclear Core Reactor Micro Antimatter Reactor Propulsion Advanced Treads Treads Advanced Treads Leg Carbon-fiber Leg Wheel Compact Wheel Hover Unit Cooled Antigrav System Flight Unit Impulse Thruster Array Utility High-capacity Storage Unit Device Seismic Detector Storage High-capacity Storage Unit Processor Improved Targeting Computer Hackware Hacking Suite Protection Hardened Medium Armor Plating Weapon Minigun Energy Cannon Enhanced Nova Cannon Ballistic Gun Minigun Ballistic Cannon Heavy Gauss Cannon Launcher Improved Grenade Launcher Impact Weapon Shock Maul Slashing Weapon Great Axe Piercing Weapon Makeshift Spear Build | -11 -10 -10 -9 -9 -8 -8 -8 -8 -8 -7 -7 -7 -7 -6 -6 -6 -6 -6 -6 -5 -5 -5 -5 -4 -4 -4 -4 -4 -3 -3 -3 -2 -2 -2 -1 -1 ------- Run | Yrd Mat Min Mat Min Mat Gar Mat Gar Mat Fac Low Low Dat Pro Fac Was Fac Ext Cet Fac Upp Upp War Pro Fac Upp Upp Zhi Pro Res Tes Res Qua Frg Acc Com Slots Evolved 18 | . . . 2 . 2 . . . . 2 . . . . 2 . . . . 2 . . . . 2 . . . . 2 . 2 . . 2 . Power 2 | . . . . . . . . . . . . . . . . . . . . 1 . . . . . . . . . . . 1 . . . . Propulsion 6 | . . . 1 . . . . . . 1 . . . . 2 . . . . . . . . . . . . . . 1 . . . . 1 . Utility 8 | . . . 1 . 1 . . . . 1 . . . . . . . . . 1 . . . . 2 . . . . 1 . . . . 1 . Weapon 2 | . . . . . 1 . . . . . . . . . . . . . . . . . . . . . . . . . . 1 . . . . Parts Attached 250 | 8 5 1 24 1 11 3 8 6 3 5 1 5 . 10 11 1 1 4 7 24 3 . 16 1 9 3 4 5 . 15 1 20 9 1 7 17 Power 28 | 2 . . 2 1 . 1 1 . . . . 2 . . 1 . . . . 2 . . 2 . 2 . . 1 . 1 1 4 1 . 2 2 Engine 9 | 2 . . 2 1 . 1 1 . . . . 1 . . . . . . . . . . 1 . . . . . . . . . . . . . Core 7 | . . . . . . . . . . . . 1 . . 1 . . . . . . . 1 . 1 . . . . . . 2 . . . 1 Reactor 12 | . . . . . . . . . . . . . . . . . . . . 2 . . . . 1 . . 1 . 1 1 2 1 . 2 1 Propulsion 68 | 2 . 1 13 . . . . 1 1 1 . 2 . 2 5 1 1 2 4 9 . . 4 . 2 . . 3 . 3 . 3 1 . 1 6 Treads 24 | 2 . . 11 . . . . 1 1 1 . 2 . 2 . . . . 2 2 . . . . . . . . . . . . . . . . Leg 2 | . . . . . . . . . . . . . . . . . . . 2 . . . . . . . . . . . . . . . . . Wheel 3 | . . 1 2 . . . . . . . . . . . . . . . . . . . . . . . . . . . . . . . . . Hover 9 | . . . . . . . . . . . . . . . 1 . . 1 . . . . 2 . 2 . . . . . . . . . . 3 Flight 30 | . . . . . . . . . . . . . . . 4 1 1 1 . 7 . . 2 . . . . 3 . 3 . 3 1 . 1 3 Utility 82 | 2 3 . 4 . 4 2 5 1 1 3 . . . 5 4 . . 1 1 6 2 . 5 . 3 3 4 1 . 7 . 7 1 1 3 3 Device 40 | 1 2 . 1 . 2 1 1 1 . . . . . 2 2 . . . . 4 1 . 4 . 2 2 3 . . 5 . 3 1 . 1 1 Storage 8 | 1 1 . . . . . . . . 1 . . . . . . . 1 . . . . . . . . . . . . . 2 . . 1 1 Processor 16 | . . . . . 1 . 1 . . . . . . 2 1 . . . . 2 1 . 1 . 1 1 1 . . . . 2 . 1 1 . Hackware 9 | . . . 1 . 1 . 1 . 1 . . . . 1 1 . . . . . . . . . . . . . . 2 . . . . . 1 Protection 9 | . . . 2 . . 1 2 . . 2 . . . . . . . . 1 . . . . . . . . 1 . . . . . . . . Artifact . | . . . . . . . . . . . . . . . . . . . . . . . . . . . . . . . . . . . . . Weapon 72 | 2 2 . 5 . 7 . 2 4 1 1 1 1 . 3 1 . . 1 2 7 1 . 5 1 2 . . . . 4 . 6 6 . 1 6 Energy Gun . | . . . . . . . . . . . . . . . . . . . . . . . . . . . . . . . . . . . . . Energy Cannon 6 | . . . . . . . . . . . 1 . . . . . . . . . . . 1 1 . . . . . . . 1 1 . . 1 Ballistic Gun 28 | 2 . . 2 . 6 . 2 3 1 . . 1 . 3 . . . . 2 . . . . . . . . . . 1 . . 1 . . 4 Ballistic Cannon 13 | . 1 . 1 . . . . . . . . . . . . . . . . 3 . . . . . . . . . 2 . 1 3 . 1 1 Launcher 12 | . 1 . 1 . . . . 1 . . . . . . 1 . . 1 . 4 . . 3 . . . . . . . . . . . . . Special Weapon . | . . . . . . . . . . . . . . . . . . . . . . . . . . . . . . . . . . . . . Impact Weapon 3 | . . . 1 . . . . . . . . . . . . . . . . . . . . . . . . . . . . 2 . . . . Slashing Weapon 7 | . . . . . 1 . . . . 1 . . . . . . . . . . . . 1 . 1 . . . . . . 2 1 . . . Piercing Weapon 3 | . . . . . . . . . . . . . . . . . . . . . 1 . . . 1 . . . . 1 . . . . . . Special Melee Weapon . | . . . . . . . . . . . . . . . . . . . . . . . . . . . . . . . . . . . . . Unidentified Prototypes 33 | . . . . . 1 . . . . . . . . . 2 . . . 3 9 . . 5 . . . . 3 . . . 4 3 . 1 2 Parts Lost 99 | . 1 2 4 . . 1 . 5 . . . 1 . 16 1 . . 3 2 9 5 . . 1 7 . . . . 6 . . 2 . 2 31 Power 12 | . . . . . . 1 . . . . . . . 1 . . . . . 1 . . . . 1 . . . . 2 . . 1 . . 5 Propulsion 39 | . . 1 1 . . . . 1 . . . 1 . 6 1 . . 3 1 4 5 . . . 4 . . . . 1 . . . . . 10 Utility 23 | . 1 . 1 . . . . 1 . . . . . 2 . . . . . 3 . . . 1 2 . . . . 1 . . . . 1 10 Weapon 25 | . . 1 2 . . . . 3 . . . . . 7 . . . . 1 1 . . . . . . . . . 2 . . 1 . 1 6 Highest Loss Streak 17 | . 1 2 3 . . 1 . 3 . . . 1 . 10 1 . . 2 1 4 3 . . 1 5 . . . . 5 . . 1 . 2 17 To Critical Strikes 1 | . . . . . . . . . . . . . . . . . . . . 1 . . . . . . . . . . . . . . . . Average Backups 13 | 3 9 17 19 20 19 19 20 19 19 19 19 19 20 13 4 5 5 5 7 6 5 5 4 4 4 5 4 4 4 4 5 8 8 8 8 7 Power . | . 1 1 1 1 1 . . 1 1 1 1 1 1 1 1 1 1 1 1 . . . . . . 1 . . 1 . . . . . . . Propulsion 2 | 1 2 4 4 4 4 4 3 3 3 2 2 1 2 . . . . . . . . . . . . . . . . . . . 1 2 1 1 Utility 5 | . 2 4 5 7 7 7 7 7 8 9 9 9 10 8 2 2 2 2 3 3 2 3 2 2 1 1 1 2 2 2 3 4 3 3 3 2 Weapon 4 | . 4 7 7 7 7 8 8 7 6 7 7 6 6 3 . 1 1 . 1 3 2 2 2 2 3 3 2 2 1 2 2 2 2 2 2 2 Tool/Special . | . . . . . . . . . . . . . . . . . . . . . . . . . . . . . . . . . . . . . Unused Backups 48 | 1 . . 18 1 7 . 4 . 1 2 1 1 . . 1 . . . . 3 1 . . . 1 . . . . . . 2 1 . 1 2 Power 4 | . . . 2 . . . . . . . . 1 . . . . . . . . . . . . . . . . . . . . . . 1 . Propulsion 15 | 1 . . 10 . 1 . 1 . . . . . . . . . . . . 1 . . . . . . . . . . . . . . . 1 Utility 10 | . . . 2 1 . . . . . 1 . . . . 1 . . . . 1 . . . . 1 . . . . . . 1 1 . . 1 Weapon 19 | . . . 4 . 6 . 3 . 1 1 1 . . . . . . . . 1 1 . . . . . . . . . . 1 . . . . Tool/Special . | . . . . . . . . . . . . . . . . . . . . . . . . . . . . . . . . . . . . . Average Slot Usage (%) 88 | . 100 99 99 100 98 100 99 99 98 99 100 100 100 75 50 77 80 70 69 79 20 17 73 83 73 57 70 81 89 86 95 87 77 71 78 75 Engine 5 | . 14 14 11 11 9 9 9 9 9 7 7 4 7 5 . . . . . . . . 6 5 1 . . . . . . . . . . . Core 1 | . . . . . . . . . . . . 2 . . 1 6 6 6 6 4 . . 2 5 5 5 5 2 . . . . . . . 1 Reactor 1 | . . . . . . . . . . . . . . . . . . . . 5 . . . . . . 4 7 10 8 9 7 9 8 11 7 Treads 17 | . 28 21 29 33 26 27 26 27 26 30 30 30 30 13 . . . . 3 15 . . . . . . . . . . . . . . . . Flight 6 | . . . . . . . . . . . . . . . 8 23 32 23 17 6 13 5 13 17 14 10 10 20 26 25 28 24 17 17 20 17 Device 9 | . 14 14 8 11 8 9 3 8 . 1 1 2 . 2 6 6 6 6 6 7 . . 20 23 21 13 23 23 21 20 23 18 21 21 20 15 Storage 6 | . 14 14 11 11 9 9 9 9 9 7 7 7 7 5 . . . . 6 4 . . . . . . . . . . . 3 4 4 4 5 Processor 9 | . . . . . 8 9 9 18 18 15 15 15 15 14 13 13 13 12 6 4 1 5 10 11 14 17 16 15 15 14 14 16 11 11 15 15 Hackware 5 | . . . 10 11 9 . 8 . 8 7 7 7 7 8 13 13 13 13 13 7 . . . . . . . . . 3 4 . . . . 1 Protection 1 | . . . 2 . . 7 6 . . 5 5 4 7 3 . . . . . 2 . . . . . . . 2 5 2 . . . . . . Ballistic Gun 14 | . 27 21 15 22 26 26 26 25 26 22 22 23 23 13 . . . . 2 8 . . . . . . . . . . . . . . . 4 Ballistic Cannon 1 | . . 6 6 . . . . . . . . . . . . . . . . 4 . . . . . . . . . 2 9 6 7 4 4 2 Peak Build Rating 206 | 7 9 9 26 26 36 36 39 39 39 47 48 51 46 49 67 64 64 61 92 133 42 18 125 123 124 97 107 126 130 154 152 170 176 170 206 182 Average Rating 61 | 5 7 8 17 25 33 34 36 36 37 44 46 47 46 37 37 62 58 53 57 108 21 18 98 116 111 89 100 116 126 136 152 160 167 168 183 153 On Entrance 70 | . 7 9 9 26 26 34 35 38 35 39 47 47 46 46 27 59 64 58 51 92 42 18 18 116 106 84 97 105 126 126 152 152 166 165 170 162 Avg Prop Armor Cover (%) 11 | . . 11 10 . . . . . . . . . . . 13 14 13 11 9 5 10 . 15 14 13 9 6 6 . . . . . . . 6 Naked Turns . | . . . . . . . . . . . . . . . . . . . . . . . . . . . . . . . . . . . . . Heaviest Build 78 | 15 51 51 57 55 60 68 69 68 59 62 61 67 61 65 11 11 11 19 24 67 2 2 29 23 27 21 31 46 46 62 58 64 73 58 78 77 Greatest Support 210 | 40 40 40 67 66 66 66 66 67 67 86 86 92 90 98 21 22 28 28 160 210 13 6 29 29 31 25 31 49 49 64 64 69 73 73 79 79 Greatest Overweight (x) 4 | . 1 3 3 . . 1 1 1 . . . . . 2 . . . 3 3 . . . 4 . . . . . . . 3 . . . . 3 Average Overweight (x) . | . . 2 . . . . . . . . . . . . . . . . . . . . . . . . . . . . . . . . . . Largest Inventory Capacity 20 | 8 20 20 20 20 20 20 20 20 20 20 20 20 20 20 5 5 5 8 8 8 5 5 5 5 5 5 5 5 5 5 5 20 10 10 10 10 Average Capacity 14 | 7 14 20 20 20 20 20 20 20 20 20 20 20 20 17 5 5 5 5 8 7 5 5 5 5 5 5 5 5 5 5 5 9 10 10 10 9 Most Carried 20 | 5 18 19 20 20 20 20 20 20 20 20 20 20 20 20 5 5 5 6 8 8 5 5 5 5 5 5 5 5 5 5 5 10 10 9 10 10 Average Carried 13 | 4 9 17 19 19 19 19 19 19 19 19 19 19 20 13 4 5 5 5 7 6 4 5 4 4 4 5 4 4 4 4 5 9 9 9 9 8 Final Capacity 20 | 8 20 20 20 20 20 20 20 20 20 20 20 20 20 5 5 5 5 8 8 5 5 5 5 5 5 5 5 5 5 5 5 10 10 10 10 5 Final Carried 20 | 5 18 18 20 20 20 20 19 20 20 20 20 20 20 5 5 5 5 6 8 5 5 5 5 5 5 5 5 5 5 5 5 10 9 9 8 3 Class Distribution -------------------- 33% | Gunner 20% | Mutant 7% | Hacker-Scout 6% | Sprinter 4% | Scavenger-Mutant 4% | Scientist-Scout 3% | Scientist-Sprinter 3% | Scavenger-Tank Dominant Class ---------------- Mutant | -10/Materials Mutant | -10/Mines Mutant | -9/Materials Mutant | -9/Mines Gunner | -8/Materials Gunner | -8/Garrison Gunner | -8/Materials Gunner | -8/Garrison Gunner | -8/Materials Gunner | -7/Factory Gunner | -7/Lower Caves Gunner | -7/Lower Caves Scientist-Gunner | -7/Data Miner Scientist-Gunner | -6/Proximity Caves Hacker-Scout | -6/Factory Hacker-Scout | -6/Waste Hacker-Scout | -6/Factory Hacker-Scout | -6/Extension Commander-Sprinter | -6/Cetus Scavenger-Tank | -5/Factory Mutant | -5/Upper Caves Mutant | -5/Upper Caves Sprinter | -5/Warlord Sprinter | -4/Proximity Caves Infiltrator-Ninja | -4/Factory Mutant | -4/Upper Caves Mutant | -4/Upper Caves Sprinter | -4/Zhirov Sprinter | -3/Proximity Caves Sprinter | -3/Research Scientist-Sprinter | -3/Testing Scientist-Scout | -2/Research Scientist-Ninja | -2/Quarantine Scientist-Ninja | -2/Protoforge Ninja | -1/Access Scientist-Sprinter | -1/Command Resources | -11 -10 -10 -9 -9 -8 -8 -8 -8 -8 -7 -7 -7 -7 -6 -6 -6 -6 -6 -6 -5 -5 -5 -5 -4 -4 -4 -4 -4 -3 -3 -3 -2 -2 -2 -1 -1 ----------- Run | Yrd Mat Min Mat Min Mat Gar Mat Gar Mat Fac Low Low Dat Pro Fac Was Fac Ext Cet Fac Upp Upp War Pro Fac Upp Upp Zhi Pro Res Tes Res Qua Frg Acc Com Matter Collected 13659 | 334 488 89 928 40 1076 652 938 872 867 494 106 445 . 433 165 178 . 429 188 1095 88 10 790 97 32 110 100 70 18 305 . 672 330 . 219 1001 Remotely 396 | . . . . . . . 16 131 . . . . . 249 . . . . . . . . . . . . . . . . . . . . . . Salvage Created 15314 | 157 471 128 1145 . 1535 762 1168 876 938 527 62 700 . 504 259 . . 991 . 1676 134 . 130 . 32 188 . 387 119 113 . 776 289 . 193 1054 Parts 797 | 10 28 4 88 . 92 38 63 64 55 32 3 45 . 21 5 . . 40 . 86 1 . 12 . 2 3 . 3 4 3 . 26 22 . 8 39 Haulers Intercepted 24 | . 1 . 5 . 4 . 2 . 3 . . . . . 2 . . . . 2 . . . . . . . . . 1 . 3 . . 1 . Recyclers Shooed 13 | 2 . . . . 1 . 1 . 1 . . . . . . . . . . 8 . . . . . . . . . . . . . . . . Parts Field Recycled . | . . . . . . . . . . . . . . . . . . . . . . . . . . . . . . . . . . . . . Retrieved Matter . | . . . . . . . . . . . . . . . . . . . . . . . . . . . . . . . . . . . . . Parts Self-Destructed 76 | . . . . . . . . . . . 3 48 . 17 . . . . . . 2 1 . . . 2 . 3 . . . . . . . . Prevented . | . . . . . . . . . . . . . . . . . . . . . . . . . . . . . . . . . . . . . Parts Restored . | . . . . . . . . . . . . . . . . . . . . . . . . . . . . . . . . . . . . . Kills | -11 -10 -10 -9 -9 -8 -8 -8 -8 -8 -7 -7 -7 -7 -6 -6 -6 -6 -6 -6 -5 -5 -5 -5 -4 -4 -4 -4 -4 -3 -3 -3 -2 -2 -2 -1 -1 ------- Run | Yrd Mat Min Mat Min Mat Gar Mat Gar Mat Fac Low Low Dat Pro Fac Was Fac Ext Cet Fac Upp Upp War Pro Fac Upp Upp Zhi Pro Res Tes Res Qua Frg Acc Com Combat Hostiles Destroyed 248 | . 13 3 27 . 21 16 19 25 15 12 1 16 . 14 . . . 4 . 25 . . 10 . . . . . 3 . . 6 5 . 1 12 Melee 3 | . . . . . . . . . . . . . . . . . . 3 . . . . . . . . . . . . . . . . . . Guns 160 | . 10 2 9 . 21 16 19 20 15 12 1 16 . 8 . . . . . 6 . . . . . . . . . . . . . . . 5 Cannons 39 | . 2 1 7 . . . . . . . . . . . . . . . . 6 . . 5 . . . . . . . . 6 5 . 1 6 AOE 45 | . 1 . 11 . . . . 5 . . . . . 6 . . . 1 . 13 . . 5 . . . . . 3 . . . . . . . Classes Destroyed 25 | 2 6 1 1 . 4 . 1 1 . . . . . 2 . . . . . 2 . . 2 . . . . . . . . 1 1 . . 1 Worker 12 | . 2 2 2 . 1 . . . 1 . . . . . . . . . . 4 . . . . . . . . . . . . . . . . Builder 14 | . . . . . 1 . 3 . 1 . . . . . . . . 4 . 4 . . . . . . . . . . . . 1 . . . Tunneler 8 | 4 1 . 1 . . . . . . . . . . . . . . 1 . 1 . . . . . . . . . . . . . . . . Hauler 24 | . 1 . 5 . 4 . 2 . 3 . . . . . 2 . . . . 2 . . . . . . . . . 1 . 3 . . 1 . Recycler 16 | 1 . 1 . . 1 . . . 1 . . . . . . . . 6 . 5 . . . . . . . . . . . 1 . . . . Mechanic 1 | . . . . . . . 1 . . . . . . . . . . . . . . . . . . . . . . . . . . . . . Operator 14 | . 1 . 3 . 3 . 2 . 2 . . . . . 1 . . . . . . . . . . . . . . 1 . 1 . . . . Drone 2 | . . . . . . . . . . . . . . 2 . . . . . . . . . . . . . . . . . . . . . . Watcher 25 | . 2 . 4 . 4 . 3 1 . . . . . . 1 . . 3 . . . . . . 1 . . . . . . 2 . . 2 2 Swarmer 60 | . 6 . 12 . . 3 3 9 2 3 . 7 . 4 . . . . . 6 . . 1 . . . . . 3 . . . . . 1 . Grunt 76 | . 7 . 8 . 10 6 9 8 6 5 . 3 . 4 . . . 2 . 1 . . 5 . . . . . . . . . 2 . . . Brawler 4 | . . . . . 1 1 . . . . . . . . . . . . . . . . 1 . . . . . . . . 1 . . . . Duelist 12 | . . . . . 1 1 1 1 . 1 . 4 . 2 . . . . . . . . 1 . . . . . . . . . . . . . Protector 2 | . . . . . . . . . . . . . . . . . . . . 2 . . . . . . . . . . . . . . . . Researcher 1 | . . . . . . . . . . . . . . . . . . . . . . . . . . . . . . . . . 1 . . . Sentry 42 | . . . 7 . 7 4 5 3 6 1 1 2 . . . . . 1 . 1 . . . . . . . . . . . 1 . . . 3 Specialist 2 | . . . . . . . . . . . . . . . . . . . . 2 . . . . . . . . . . . . . . . . Hunter 16 | . . . . . 2 1 1 . 1 1 . . . 1 . . . . . 7 . . 1 . . . . . . . . . . . . 1 Programmer 18 | . . . . . . . . 4 . 1 . . . . . . . . . 6 . . . . . . . . . . . 2 3 . . 2 Behemoth 2 | . . . . . . . . . . . . . . 1 . . . 1 . . . . . . . . . . . . . . . . . . Enhanced Grunt 1 | . . . . . . . . . . . . . . . . . . . . 1 . . . . . . . . . . . . . . . . Striker 1 | . . . . . . . . . . . . . . . . . . . . . . . . . . . . . . . . . . . . 1 Executioner 3 | . . . . . . . . . . . . . . . . . . . . . . . 1 . . . . . . . . 2 . . . . Packrat 2 | . . . . . . . . . . . . . . . . . . . . . 2 . . . . . . . . . . . . . . . Samaritan 1 | . . . . . . . . . . . . . . . . . . . . . . . . . . . . . . . . 1 . . . . Assembled 3 | . . 3 . . . . . . . . . . . . . . . . . . . . . . . . . . . . . . . . . . Thug 3 | . . . 1 . . . . . . . . . . . . . . . . . . . 1 . . . . . . . . . . . . 1 Savage 1 | . . . . . . . . . . . . . . . . . . . . 1 . . . . . . . . . . . . . . . . Butcher 1 | . . . . . . . . . . . . . . . . . . . . . . . 1 . . . . . . . . . . . . . Martyr 2 | . . . . . . . . . . . . . . . . . . . . . . . 1 . . . . . . . . 1 . . . . Guerrilla 1 | . . . . . . . . . . . . . . . . . . . . . . . . . . . . . . . . . . . . 1 Wizard 3 | . . . . . . . . . . . . . . . . . . . . . . . . . . . . . . . . . . . . 3 Best Kill Streak 12 | 2 3 3 9 . 5 3 5 4 10 3 1 6 . 6 1 . . 10 . 12 . . 2 . 1 . . . 3 1 . 2 5 . 1 3 Combat Bots Only 10 | . 3 3 6 . 4 3 5 4 6 3 1 6 . 6 . . . 2 . 10 . . 2 . . . . . 3 . . 2 3 . 1 3 Max Kills in Single Turn 8 | 1 2 2 3 . 2 1 2 2 2 1 1 2 . 1 1 . . 3 . 8 1 . 2 . 1 . . . 2 1 . 2 1 . 1 2 Gunslinging 1 | . . . 1 . . . . 1 . . . 1 . . . . . . . . . . . . . . . . . . . . . . . 1 Exploded 7 | . 1 . 3 . . . . 2 . . . . . 1 . . . 1 . 7 . . 1 . . . . . 2 . . . . . . . Melee 1 | . . . . . . . . . . . . . . . . . . 1 . . . . . . . . . . . . . . . . . . Uniques/NPCs Destroyed . | . . . . . . . . . . . . . . . . . . . . . . . . . . . . . . . . . . . . . Combat | -11 -10 -10 -9 -9 -8 -8 -8 -8 -8 -7 -7 -7 -7 -6 -6 -6 -6 -6 -6 -5 -5 -5 -5 -4 -4 -4 -4 -4 -3 -3 -3 -2 -2 -2 -1 -1 -------- Run | Yrd Mat Min Mat Min Mat Gar Mat Gar Mat Fac Low Low Dat Pro Fac Was Fac Ext Cet Fac Upp Upp War Pro Fac Upp Upp Zhi Pro Res Tes Res Qua Frg Acc Com Hostile Shots Fired 1882 | . 68 14 87 . 73 52 67 118 27 49 27 53 . 162 12 . . 45 . 230 32 38 2 2 39 . . . 9 146 . 6 122 12 107 283 Missed 772 | . 15 7 29 . 19 17 23 25 11 17 13 20 . 48 9 . . 24 . 64 16 19 . . 21 . . . 4 93 . 5 56 9 61 147 Hits 1110 | . 53 7 58 . 54 35 44 93 16 32 14 33 . 114 3 . . 21 . 166 16 19 2 2 18 . . . 5 53 . 1 66 3 46 136 Melee 14 | . . 1 . . . 1 2 2 . 2 . 2 . 4 . . . . . . . . . . . . . . . . . . . . . . Projectile 1096 | . 53 6 58 . 54 34 42 91 16 30 14 31 . 110 3 . . 21 . 166 16 19 2 2 18 . . . 5 53 . 1 66 3 46 136 AOE 14 | . . . 1 . . . . . . . . . . . . . . . . . . . . . 5 . . . . . . . . . . 8 Critical Strikes 75 | . . . . . 2 2 3 6 1 1 . 1 . 2 . . . . . 30 1 . . . . . . . . 1 . . 8 . 1 16 Actively Blocked 14 | . . . . . . . . . . . . . . . . . . . . . . . . . . . . . . . . . . . . 14 Part Disruptions 3 | . . . . . . . . . . . . . . . . . . . . 1 . . . . . . . . . . . . . . . 2 Damage Taken 21434 | . 568 113 839 . 815 491 695 1301 228 386 102 498 . 2282 267 24 . 238 121 3353 338 387 88 41 773 . . . 106 862 . 61 1344 76 886 4151 Core 4412 | . 79 . 181 . 76 57 128 144 31 16 11 54 . 397 201 24 . 96 24 423 203 345 . . 208 . . . . 52 . . 152 . 100 1410 Absorbed by Shields 254 | . . . . . . 48 . 79 . 34 . . . . . . . 68 12 . . . . . . . . . . 13 . . . . . . Redirected to Shielding 157 | . . . . . . . . . . . . . . . . . . . . . . . . . . . . . 39 118 . . . . . . Regen/Repaired (Parts) 2057 | . . . 13 . 505 . 430 . 443 . . . . . . . . . . . . . 28 . . . . . . . . 43 20 312 128 135 Core Remaining (%) 60 | 100 . 68 . 54 . . . . 20 . . . . 31 . . . . 59 . . . . 2 . . . . 81 . 96 . . 89 . . Volleys Fired 791 | 9 69 11 74 . 72 33 70 70 31 26 7 30 . 44 . . . 5 1 59 . . 28 13 . . . . 3 10 . 28 16 3 3 76 Largest 4 | 2 2 2 2 . 3 3 3 3 3 3 3 3 . 3 . . . 1 1 3 . . 1 1 . . . . 1 2 . 2 2 1 1 4 Hottest 358 | 40 50 50 53 . 76 76 84 84 75 75 80 75 . 108 . . . 50 50 140 . . 55 85 . . . . 60 102 . 171 116 58 58 358 Shots Fired 1797 | 18 134 22 142 . 213 97 209 173 95 78 13 90 . 106 . . . 6 1 123 . . 28 13 . . . . 3 16 . 53 32 3 3 126 Gun 1418 | 18 119 15 81 . 213 97 209 169 95 78 9 90 . 91 . . . . . 66 . . . . . . . . . . . . . . . 68 Cannon 330 | . 11 7 55 . . . . . . . 4 . . 6 . . . . . 54 . . 16 13 . . . . . 16 . 53 32 3 3 57 Launcher 49 | . 4 . 6 . . . . 4 . . . . . 9 . . . 6 1 3 . . 12 . . . . . 3 . . . . . . 1 Special . | . . . . . . . . . . . . . . . . . . . . . . . . . . . . . . . . . . . . . Kinetic 1695 | 18 130 22 136 . 213 97 209 169 95 78 9 90 . 91 . . . . . 120 . . . . . . . . . 16 . 51 32 3 3 113 Thermal 22 | . . . . . . . . . . . 4 . . 6 . . . . . . . . . 4 . . . . . . . 2 . . . 6 Explosive 45 | . 4 . 6 . . . . 4 . . . . . 9 . . . 6 1 3 . . 12 . . . . . . . . . . . . . Electromagnetic 10 | . . . . . . . . . . . . . . . . . . . . . . . . . . . . . 3 . . . . . . 7 Entropic 25 | . . . . . . . . . . . . . . . . . . . . . . . 16 9 . . . . . . . . . . . . Robot Hit Streak 30 | 9 10 7 14 . 18 16 14 13 30 13 8 11 . 25 . . . 2 . 9 . . 3 . . . . . . 11 . 12 15 . 2 24 Robot Miss Streak 10 | 2 4 4 3 . 2 1 7 3 3 2 1 4 . 3 . . . 4 . 10 . . 2 . . . . . . 1 . 4 1 1 . 2 Penetration Max 1 | . . . . . . . 1 1 . . . . . . . . . . . 1 . . . . . . . . . . . 1 . . . 1 Secondary Targets 29 | . . . 2 . 2 6 1 7 3 1 . 3 . 2 . . . . . 1 . . . . . . . . . . . . . . . 1 Max Gunslinging Chain 1 | . . . 1 . 1 1 1 1 1 1 . 1 . 1 . . . . . 1 . . . . . . . . . . . . . . . 1 Shots Hit Robots 1194 | 11 83 12 93 . 145 71 109 107 72 51 8 53 . 82 17 . . 17 . 65 2 . 10 . 1 4 . 5 . 12 . 47 23 1 4 89 Core Hits 740 | 6 28 7 54 . 65 30 47 44 39 28 3 27 . 33 4 . . 54 12 138 . . 22 . 1 2 . 5 8 2 . 19 9 . 3 50 Critical Kills 11 | . . . . . 1 . 5 . . 1 . 1 . . . . . . . 1 . . . . . . . . . . . . . . . 2 Critical Parts Destroyed 28 | . . . 2 . 1 1 3 3 3 . . . . 1 . . . . . 6 . . . . . . . . . . . 3 . . . 5 Critical Strikes 84 | . 1 . 5 . 2 2 8 3 3 1 . 1 . 1 2 . . 1 . 16 . . 2 . . . . 1 . . . 18 5 . . 12 Destroy 40 | . . . 2 . 2 2 8 3 3 1 . 1 . 1 . . . . . 8 . . . . . . . . . . . . . . . 9 Blast 34 | . 1 . 3 . . . . . . . . . . . . . . . . 8 . . . . . . . . . . . 14 5 . . 3 Smash 3 | . . . . . . . . . . . . . . . . . . . . . . . . . . . . . . . . 3 . . . . Sever 3 | . . . . . . . . . . . . . . . 2 . . 1 . . . . . . . . . . . . . . . . . . Impale 2 | . . . . . . . . . . . . . . . . . . . . . . . . . . . . 1 . . . 1 . . . . Sunder 2 | . . . . . . . . . . . . . . . . . . . . . . . 2 . . . . . . . . . . . . . Melee Attacks 206 | . . . 2 . 3 4 . 7 . 6 . . . . 32 1 8 20 . . 4 . . 7 20 4 1 5 . 31 1 14 6 8 22 . Impact 6 | . . . 2 . . . . . . . . . . . . . . . . . . . . . . . . . . . . 4 . . . . Slashing 119 | . . . . . 3 4 . 7 . 6 . . . . 32 1 8 20 . . . . . . . . . . . . . 2 6 8 22 . Piercing 81 | . . . . . . . . . . . . . . . . . . . . . 4 . . 7 20 4 1 5 . 31 1 8 . . . . Sneak Attacks 16 | . . . . . 1 . . . . . . . . . 4 . . 2 . . 2 . . . . . . . . 1 . 5 . . 1 . Combat Hostiles . | . . . . . . . . . . . . . . . . . . . . . . . . . . . . . . . . . . . . . Follow-up Attacks 1 | . . . . . . . . . . . . . . . . . . . . . . . . . . . . . . . . 1 . . . . Damage Inflicted 40421 | 136 1205 195 2098 . 2506 1176 2247 2678 1306 867 143 899 . 2108 934 . . 2206 444 6006 139 . 4158 . 128 390 . 536 346 545 . 2146 1029 117 459 3274 Guns 16822 | 136 963 112 850 . 2408 1176 2247 2202 1272 867 143 899 . 1225 . . . . . 1257 . . . . . . . . . . . . . . . 1065 Cannons 7983 | . 192 83 670 . . . . . . . . . . 139 . . . . . 1336 . . 841 . . . . . . 296 . 1284 1029 . 108 2005 Explosions 10969 | . 32 . 543 . . . . 476 . . . . . 744 . . . 1533 444 3330 . . 3317 . . . . . 346 . . . . . . 204 Melee 4357 | . . . . . 57 . . . . . . . . . 934 . . 673 . . 139 . . . 49 390 . 536 . 249 . 862 . 117 351 . Ramming 290 | . 18 . 35 . 41 . . . 34 . . . . . . . . . . 83 . . . . 79 . . . . . . . . . . . Kinetic 23026 | 136 1155 195 1520 . 2408 1176 2247 2202 1272 867 143 899 . 1225 . . . . . 2593 . . . . . . . . . 296 . 1201 1029 . 108 2354 Thermal 893 | . . . . . . . . . . . . . . 139 . . . . . 45 . . . . . . . . 126 . . 83 . . . 500 Explosive 10374 | . 32 . 543 . . . . 476 . . . . . 744 . . . 1533 444 3285 . . 3317 . . . . . . . . . . . . . Electromagnetic 640 | . . . . . . . . . . . . . . . . . . . . . . . . . . . . . 220 . . . . . . 420 Impact 356 | . . . . . . . . . . . . . . . . . . . . . . . . . . . . . . . . 356 . . . . Slashing 2306 | . . . . . 57 . . . . . . . . . 934 . . 673 . . . . . . . . . . . . . 174 . 117 351 . Piercing 1695 | . . . . . . . . . . . . . . . . . . . . . 139 . . . 49 390 . 536 . 249 . 332 . . . . Entropic 841 | . . . . . . . . . . . . . . . . . . . . . . . 841 . . . . . . . . . . . . . Highest Corruption 22 | . . . 2 2 . . . 6 7 . . . . . . 5 5 6 6 2 4 6 6 . 3 3 3 3 3 1 1 . . 1 . 22 Average Corruption 3 | . . . 2 2 . . . 5 6 . . . . . . 5 5 5 6 1 2 4 6 . 2 3 3 3 3 1 1 . . 1 . 5 Corruption Purged . | . . . . . . . . . . . . . . . . . . . . . . . . . . . . . . . . . . . . . Corruption Blocked . | . . . . . . . . . . . . . . . . . . . . . . . . . . . . . . . . . . . . . Effects 179 | . . . 23 2 . . . 33 23 . . . . . . 2 15 25 11 11 1 1 1 . 6 2 3 2 3 2 1 . . 2 . 10 Message Errors 45 | . . . 5 . . . . 8 4 . . . . . . 1 5 5 4 3 . . . . 2 . 1 . 1 2 . . . 1 . 3 Matter Fused 43 | . . . 7 . . . . 8 7 . . . . . . 1 5 5 2 . . . 1 . 3 . . 1 . . 1 . . . . 2 Heat Flow Errors 23 | . . . 2 1 . . . 3 3 . . . . . . . 2 3 2 2 . . . . . . 1 . 2 . . . . . . 2 Energy Discharges 21 | . . . 1 . . . . 4 3 . . . . . . . . 6 1 2 . . . . 1 . 1 . . . . . . 1 . 1 Parts Fused 1 | . . . 1 . . . . . . . . . . . . . . . . . . . . . . . . . . . . . . . . . Data Loss (minor) 18 | . . . 4 . . . . 4 1 . . . . . . . 1 3 1 1 . 1 . . . 1 . . . . . . . . . 1 Data Loss (major) 11 | . . . . . . . . 1 3 . . . . . . . 1 . . 2 1 . . . . 1 . 1 . . . . . . . 1 Misfires 6 | . . . 2 . . . . . 2 . . . . . . . . 1 . 1 . . . . . . . . . . . . . . . . Alerts 6 | . . . . 1 . . . 1 . . . . . . . . 1 2 1 . . . . . . . . . . . . . . . . . Weapon Failures 5 | . . . 1 . . . . 4 . . . . . . . . . . . . . . . . . . . . . . . . . . . . Overload Shots . | . . . . . . . . . . . . . . . . . . . . . . . . . . . . . . . . . . . . . Overflow Damage 1517 | . . . 8 . . . . 29 . . . . . 15 140 . . 6 . 98 85 . 361 . . 151 . . . 3 . 311 41 47 30 192 Projectiles 574 | . . . 1 . . . . . . . . . . 1 . . . . . 96 . . 186 . . . . . . . . 27 41 . 30 192 Explosions 227 | . . . 1 . . . . 29 . . . . . 14 . . . 6 . 2 . . 175 . . . . . . . . . . . . . Melee 716 | . . . 6 . . . . . . . . . . . 140 . . . . . 85 . . . . 151 . . . 3 . 284 . 47 . . Knockbacks 27 | . 1 1 5 . . . . . 1 . . . . . . . . . . 8 . . . . . . . . . . . 1 1 . . 9 Impact 3 | . . . 1 . . . . . 1 . . . . . . . . . . 1 . . . . . . . . . . . . . . . . Kinetic 22 | . 1 1 4 . . . . . . . . . . . . . . . . 6 . . . . . . . . . . . 1 1 . . 8 Secondary 2 | . . . . . . . . . . . . . . . . . . . . 1 . . . . . . . . . . . . . . . 1 Self-Inflicted Damage 321 | . 3 . 27 . . . . 28 . . . . . . . . . 36 25 86 . . . . 79 . . . . . . . . . . 37 Shots 13 | . 1 . 1 . . . . 1 . . . . . . . . . 2 1 4 . . . . . . . . . . . . . . . 3 Rammed 33 | . 11 . 2 . 7 . . . 5 . . . . . . . . . . 8 . . . . . . . . . . . . . . . . Targets Rammed 38 | . 12 . 3 . 7 . . . 6 . . . . . . . . . . 10 . . . . . . . . . . . . . . . . Kicked . | . . . . . . . . . . . . . . . . . . . . . . . . . . . . . . . . . . . . . Crushed 5 | . 1 . 1 . . . . . 1 . . . . . . . . . . 2 . . . . . . . . . . . . . . . . Highest Temperature 409 | . 8 . 102 214 9 12 212 231 178 106 112 103 . 175 . . 229 254 242 409 . . 40 184 1 . 197 . 283 24 3 126 . . 5 228 Average Temperature 57 | . 2 . 18 110 4 6 40 92 38 30 50 37 . 53 . . 118 111 111 84 . . 17 62 1 . 105 . 141 10 3 42 . . 5 69 Received Heat Transfer 2925 | . 234 20 201 . 252 204 324 328 99 87 30 123 . 477 . . . 56 . 51 27 66 . . 54 . . . . 96 . . 36 . 27 133 Siege Activations . | . . . . . . . . . . . . . . . . . . . . . . . . . . . . . . . . . . . . . Martial Activations . | . . . . . . . . . . . . . . . . . . . . . . . . . . . . . . . . . . . . . Shielding Activations . | . . . . . . . . . . . . . . . . . . . . . . . . . . . . . . . . . . . . . Robots Disrupted . | . . . . . . . . . . . . . . . . . . . . . . . . . . . . . . . . . . . . . Combat Hostiles . | . . . . . . . . . . . . . . . . . . . . . . . . . . . . . . . . . . . . . Robots Corrupted 4 | . . . 1 . . . . . . . . . . . . . . . . . . . . . . . . . . . . 2 . . . 1 Combat Hostiles 1 | . . . . . . . . . . . . . . . . . . . . . . . . . . . . . . . . . . . . 1 Parts Fried 16 | . . . 2 . . . . . . . . . . . . . . . . . . . . . . . . . 4 . . 6 . . . 4 Impact Corruptions 7 | . . . 1 . . . . . . . . . . . . . . . . . . . . . . . . . . . . 6 . . . . Robots Melted . | . . . . . . . . . . . . . . . . . . . . . . . . . . . . . . . . . . . . . Combat Hostiles . | . . . . . . . . . . . . . . . . . . . . . . . . . . . . . . . . . . . . . Parts Melted 2 | . . . . . . . . . . . . 1 . . . . . 1 . . . . . . . . . . . . . . . . . . Heat Transferred 474 | . . . . . . . . . . . . . . 250 . . . . . 100 . . . . . . . . 50 . . 74 . . . . Parts Sabotaged . | . . . . . . . . . . . . . . . . . . . . . . . . . . . . . . . . . . . . . Parts Stolen . | . . . . . . . . . . . . . . . . . . . . . . . . . . . . . . . . . . . . . Parts Stripped . | . . . . . . . . . . . . . . . . . . . . . . . . . . . . . . . . . . . . . Power Chain Reactions 2 | . . . . . . . . . . . . . . . . . . . . . . . . . . . . . 1 1 . . . . . . Alert | -11 -10 -10 -9 -9 -8 -8 -8 -8 -8 -7 -7 -7 -7 -6 -6 -6 -6 -6 -6 -5 -5 -5 -5 -4 -4 -4 -4 -4 -3 -3 -3 -2 -2 -2 -1 -1 ------- Run | Yrd Mat Min Mat Min Mat Gar Mat Gar Mat Fac Low Low Dat Pro Fac Was Fac Ext Cet Fac Upp Upp War Pro Fac Upp Upp Zhi Pro Res Tes Res Qua Frg Acc Com Maximum Alert Level 3 | . . . 1 . 1 2 2 3 2 1 . . . . . . . 1 . 3 . . . . . . . . . 2 1 2 2 1 1 1 Low Security (%) 49 | 100 100 100 56 100 64 26 . . . 54 . . . . 100 100 100 85 100 34 . . . . 100 . . . . 66 . 11 . 40 87 30 Level 1 31 | . . . 43 . 35 24 75 30 41 45 . . . . . . . 14 . . . . . . . . . . . 10 100 62 73 59 12 69 Level 2 11 | . . . . . . 49 24 33 58 . . . . . . . . . . 5 . . . . . . . . . 22 . 26 26 . . . Level 3 6 | . . . . . . . . 36 . . . . . . . . . . . 59 . . . . . . . . . . . . . . . . Level 4 . | . . . . . . . . . . . . . . . . . . . . . . . . . . . . . . . . . . . . . Level 5 . | . . . . . . . . . . . . . . . . . . . . . . . . . . . . . . . . . . . . . High Security . | . . . . . . . . . . . . . . . . . . . . . . . . . . . . . . . . . . . . . Max Security . | . . . . . . . . . . . . . . . . . . . . . . . . . . . . . . . . . . . . . Peak Influence 1051 | 10 115 70 365 88 262 689 538 1051 569 255 . . . . 150 39 17 257 176 996 . . . . 62 . . . . 439 253 463 613 371 262 365 Initial 512 | . . . 24 88 10 13 335 217 512 255 . . . . 150 25 2 . 116 67 . . . . . . . . . 111 238 134 219 344 121 167 Average 253 | 1 34 5 223 60 125 386 367 629 421 196 . . . . 72 19 1 102 125 565 . . . . 18 . . . . 192 240 324 359 215 149 240 Influence Increases 13353 | 25 423 78 1067 . 714 686 712 944 455 404 20 403 . 309 348 47 36 893 380 1438 105 75 200 . 174 5 . 15 205 579 61 730 640 129 341 712 Destroy 0b10 Robot/C 5780 | . 260 40 660 . 420 320 380 500 300 240 20 360 . 240 20 . . 420 160 600 . . 200 . . . . . 60 . . 280 140 . 20 140 Destroy 0b10 Robot/NC 660 | 25 35 15 75 . 70 . 55 5 40 . . . . 10 20 . . 75 10 105 . . . . 5 5 . 15 . 10 . 45 5 . 15 20 Destroy Leader 1102 | . 56 10 178 . 136 20 110 20 96 60 . 30 . 50 16 . . 46 . 108 . . . . 2 . . . 10 2 . 82 20 . 6 44 Allied During Kill 832 | . . 13 38 . . . . . . . . 13 . 9 8 . . 248 160 267 . . . . . . . . . . . 36 40 . . . Trap Triggered on 0b10 10 | . . . . . . . . . . . . . . . 10 . . . . . . . . . . . . . . . . . . . . . Successful Hack 620 | . 52 . 38 . 24 16 50 28 3 83 . . . . 22 . 14 7 7 . . . . . 34 . . . . 33 44 14 24 45 . 82 Select Force Hacks 50 | . . . . . . . . . . . . . . . . . . . . . . . . . . . . . . 50 . . . . . . Disable Machine 540 | . . . 45 . 30 . 75 30 . 15 . . . . . . 15 30 . 90 . . . . 30 . . . . 15 . 90 60 15 . . Anti-Garrison Action 600 | . . . . . . 300 . 300 . . . . . . . . . . . . . . . . . . . . . . . . . . . . Destroy Structure 1119 | . 20 . 33 . 4 15 12 46 1 6 . . . . 12 47 7 67 43 268 . . . . 28 . . . . 64 2 93 21 24 60 246 Advance Influence 150 | . . . . . . . . . . . . . . . 150 . . . . . . . . . . . . . . . . . . . . . Partial Spotted 300 | . . . . . . . . . . . . . . . . . . . . . . . . . 15 . . . . 30 15 45 15 45 60 75 Lose Combat Pursuer 1590 | . . . . . 30 15 30 15 15 . . . . . 90 . . . . . 105 75 . . 60 . . . 135 375 . 45 315 . 180 105 Influence Decreases 13176 | 25 423 16 902 199 722 17 1066 228 943 794 193 326 77 309 276 115 40 684 467 683 456 151 650 . 172 7 . 15 40 320 246 579 417 539 282 797 Entered New Map 3701 | . . . 38 139 18 7 354 118 539 308 65 . 77 . . 47 2 . 93 55 326 101 450 . . 2 . . . 54 186 105 171 269 82 95 Time Decay 7246 | 25 354 16 674 60 554 . 562 . 404 486 128 276 . 199 246 40 38 404 214 454 80 50 156 . 148 5 . 15 40 206 60 474 206 100 180 392 Lost Part 844 | . 10 . 40 . . 10 . 50 . . . 10 . 90 10 . . 30 20 90 50 . . . 24 . . . . 60 . . 20 . 20 310 Lost Ally 576 | . . . . . . . . 60 . . . 40 . 20 20 28 . 100 140 84 . . 44 . . . . . . . . . 20 20 . . Purge Threat 809 | . 59 . 150 . 150 . 150 . . . . . . . . . . 150 . . . . . . . . . . . . . . . 150 . . Squads Dispatched 68 | . 2 . 3 . 1 . 4 . 4 3 . 1 . . 5 . 1 2 . 7 . 1 . . 2 . . . . 10 1 3 7 2 3 6 Investigation 14 | . 1 . . . . . . . . . . . . . 1 . . 1 . . . . . . 1 . . . . 3 . 2 1 2 1 1 Extermination 20 | . . . . . . . . . . 2 . . . . 1 . . . . 4 . . . . 1 . . . . 1 1 . 3 . 2 5 Reinforcement 27 | . 1 . 3 . 1 . 2 . 2 1 . . . . 3 . 1 1 . 2 . . . . . . . . . 6 . 1 3 . . . Assault 3 | . . . . . . . . . . . . 1 . . . . . . . 1 . 1 . . . . . . . . . . . . . . Garrison 4 | . . . . . . . 2 . 2 . . . . . . . . . . . . . . . . . . . . . . . . . . . Intercept . | . . . . . . . . . . . . . . . . . . . . . . . . . . . . . . . . . . . . . Searches Triggered . | . . . . . . . . . . . . . . . . . . . . . . . . . . . . . . . . . . . . . Unchained Authorized 2 | . . . . . . . . . . . . . . . . . . . . 1 . . . . . . . . . . . . 1 . . . Data Miner Redirects 3 | . . . . . . . . . . . . . . . 1 . . 1 . . . . . . . . . . . . . . . 1 . . Construction Impeded 3 | . . . 1 . . . 1 . . . . . . . . . . 1 . . . . . . . . . . . . . . . . . . Haulers Reinforced 3 | . . . . . . . . . . . . . . . 1 . . . . . . . . . . . . . . 2 . . . . . . Active Scanning Responses . | . . . . . . . . . . . . . . . . . . . . . . . . . . . . . . . . . . . . . Cargo Convoy Interrupts 1 | . . . . . . . . . . . . . . . . . . . . 1 . . . . . . . . . . . . . . . . Stealth | -11 -10 -10 -9 -9 -8 -8 -8 -8 -8 -7 -7 -7 -7 -6 -6 -6 -6 -6 -6 -5 -5 -5 -5 -4 -4 -4 -4 -4 -3 -3 -3 -2 -2 -2 -1 -1 --------- Run | Yrd Mat Min Mat Min Mat Gar Mat Gar Mat Fac Low Low Dat Pro Fac Was Fac Ext Cet Fac Upp Upp War Pro Fac Upp Upp Zhi Pro Res Tes Res Qua Frg Acc Com Distress Signals 37 | . 2 . 2 . 1 . 3 1 1 1 . . . . 1 . . . 2 . . . 1 . 1 . . . . 4 . 7 2 2 3 3 Communications Jammed 68 | . . . . . . . . . . . . . . . . . . . . 37 . . . . . . . . . . . . 15 7 8 1 Distress Signals 55 | . . . . . . . . . . . . . . . . . . . . 37 . . . . . . . . . . . . 8 7 2 1 Times Spotted 659 | . 20 4 47 . 34 16 42 28 20 15 1 18 . 15 7 6 . 21 10 52 10 14 30 1 14 . . . 9 50 . 28 41 8 30 68 Peak Tracking Total 22 | . 4 3 6 . 6 4 6 4 5 4 1 7 . 6 7 4 . 4 5 11 9 11 9 1 8 . . . 9 19 . 5 22 6 17 17 Tactical Retreats 50 | . . 1 . . 2 1 2 1 1 . . . . . 3 . . . . . 3 2 . . 4 . . . 4 5 . 2 6 . 6 7 ECM-based Alert Blocks 2 | . . . . . . . . . . . . . . . . . . . . . . . . . 2 . . . . . . . . . . . Traps | -11 -10 -10 -9 -9 -8 -8 -8 -8 -8 -7 -7 -7 -7 -6 -6 -6 -6 -6 -6 -5 -5 -5 -5 -4 -4 -4 -4 -4 -3 -3 -3 -2 -2 -2 -1 -1 ------- Run | Yrd Mat Min Mat Min Mat Gar Mat Gar Mat Fac Low Low Dat Pro Fac Was Fac Ext Cet Fac Upp Upp War Pro Fac Upp Upp Zhi Pro Res Tes Res Qua Frg Acc Com Traps Triggered 30 | . 1 . 1 . 1 9 1 3 1 1 . . . . 4 . . 4 . 1 . . . . . . . . . 2 . . 1 . . . Indirectly . | . . . . . . . . . . . . . . . . . . . . . . . . . . . . . . . . . . . . . Trap Hack Attempts . | . . . . . . . . . . . . . . . . . . . . . . . . . . . . . . . . . . . . . Triggered . | . . . . . . . . . . . . . . . . . . . . . . . . . . . . . . . . . . . . . Disarmed . | . . . . . . . . . . . . . . . . . . . . . . . . . . . . . . . . . . . . . Reprogrammed . | . . . . . . . . . . . . . . . . . . . . . . . . . . . . . . . . . . . . . Reused . | . . . . . . . . . . . . . . . . . . . . . . . . . . . . . . . . . . . . . Traps Extracted . | . . . . . . . . . . . . . . . . . . . . . . . . . . . . . . . . . . . . . Installed . | . . . . . . . . . . . . . . . . . . . . . . . . . . . . . . . . . . . . . Triggered 1 | . . . . . . . . . . . . . . . 1 . . . . . . . . . . . . . . . . . . . . . Most Traps Carried 1 | . . . . . . . . 1 . . . . . . . . . . . . . . . . . . . . . . . . . . . . Machines | -11 -10 -10 -9 -9 -8 -8 -8 -8 -8 -7 -7 -7 -7 -6 -6 -6 -6 -6 -6 -5 -5 -5 -5 -4 -4 -4 -4 -4 -3 -3 -3 -2 -2 -2 -1 -1 ---------- Run | Yrd Mat Min Mat Min Mat Gar Mat Gar Mat Fac Low Low Dat Pro Fac Was Fac Ext Cet Fac Upp Upp War Pro Fac Upp Upp Zhi Pro Res Tes Res Qua Frg Acc Com Machines Disabled 46 | . . . 4 . 2 4 5 6 . 1 . . . . . . 1 2 . 6 . . 1 . 2 . . . . 1 . 6 4 1 . . Max in Single Turn 2 | . . . 1 . 1 1 2 1 . 1 . . . . . . 1 1 . 2 . . 1 . 1 . . . . 1 . 1 1 1 . . Garrison Access 6 | . . . . . . . . . . 1 . . . . . . . . . 2 . . . . . . . . . 1 . 2 . . . . Garrison Relay 8 | . . . . . . 4 . 4 . . . . . . . . . . . . . . . . . . . . . . . . . . . . Machines Repaired . | . . . . . . . . . . . . . . . . . . . . . . . . . . . . . . . . . . . . . Machines Dismantled . | . . . . . . . . . . . . . . . . . . . . . . . . . . . . . . . . . . . . . Machines Sabotaged . | . . . . . . . . . . . . . . . . . . . . . . . . . . . . . . . . . . . . . Overloaded Fab Kills 2 | . . . . . . . . . . . . . . . . . . . . . . . . . . . . . . 2 . . . . . . Hacking | -11 -10 -10 -9 -9 -8 -8 -8 -8 -8 -7 -7 -7 -7 -6 -6 -6 -6 -6 -6 -5 -5 -5 -5 -4 -4 -4 -4 -4 -3 -3 -3 -2 -2 -2 -1 -1 --------- Run | Yrd Mat Min Mat Min Mat Gar Mat Gar Mat Fac Low Low Dat Pro Fac Was Fac Ext Cet Fac Upp Upp War Pro Fac Upp Upp Zhi Pro Res Tes Res Qua Frg Acc Com Machines Accessed 148 | . 7 . 13 . 13 2 11 2 4 7 2 . 4 . 7 . 2 3 3 5 . . 5 . 8 . 1 4 . 8 5 3 8 9 4 8 Terminals 94 | . 7 . 10 . 8 2 8 2 2 3 1 . . . 4 . 2 3 3 1 . . . . 7 . . . . 5 4 . 5 8 2 7 Fabricators 8 | . . . . . . . . . . 2 . . . . 2 . . . . 1 . . . . . . . . . 2 . 1 . . . . Repair Stations 9 | . . . 2 . 2 . 2 . 1 . . . . . . . . . . . . . . . . . . . . . . . . 1 . 1 Recycling Units . | . . . . . . . . . . . . . . . . . . . . . . . . . . . . . . . . . . . . . Scanalyzers 13 | . . . 1 . 2 . . . 1 1 . . . . . . . . . 1 . . . . 1 . . . . 1 1 . 3 . 1 . Garrison Access 9 | . . . . . 1 . 1 . . 1 . . . . 1 . . . . 2 . . . . . . . . . . . 2 . . 1 . Total Hacks 468 | . 32 . 52 . 53 5 57 5 16 23 2 . 27 . 22 . 4 12 13 8 . . 12 . 22 . 1 17 . 16 10 7 17 17 5 13 Successful 293 | . 19 . 40 . 39 1 32 2 11 16 2 . 27 . 9 . 2 6 3 5 . . 12 . 11 . 1 17 . 8 8 3 6 6 . 7 Failed 170 | . 12 . 11 . 13 4 25 3 4 7 . . . . 13 . 2 6 10 3 . . . . 10 . . . . 8 2 4 11 11 5 6 Catastrophic 36 | . 1 . 2 . 2 . 4 1 . . . . . . 2 . . . 5 1 . . . . 2 . . . . 2 1 2 4 5 2 . Database Lockouts 5 | . 1 . 1 . 1 . . . 1 . . . . . . . . . . . . . . . 1 . . . . . . . . . . . Manual 194 | . 13 . 33 . 18 1 36 2 5 12 . . . . 16 . 2 3 1 2 . . 1 . 15 . . . . 6 4 . 2 11 2 9 Terminals 303 | . 32 . 46 . 28 5 49 5 6 8 1 . . . 17 . 4 12 13 2 . . . . 20 . . . . 8 8 . 9 15 3 12 Fabricators 22 | . . . . . . . . . . 10 . . . . 4 . . . . 1 . . . . . . . . . 3 . 4 . . . . Repair Stations 36 | . . . 3 . 15 . 7 . 8 . . . . . . . . . . . . . . . . . . . . . . . . 2 . 1 Recycling Units . | . . . . . . . . . . . . . . . . . . . . . . . . . . . . . . . . . . . . . Scanalyzers 37 | . . . 3 . 8 . . . 2 4 . . . . . . . . . 2 . . . . 2 . . . . 5 2 . 8 . 1 . Garrison Access 12 | . . . . . 2 . 1 . . 1 . . . . 1 . . . . 3 . . . . . . . . . . . 3 . . 1 . Terminal Hacks 148 | . 16 . 16 . 9 1 15 1 1 2 2 . 27 . 1 . 1 5 3 1 . . 12 . 5 . 1 17 . 1 4 . 3 1 . 3 Record 32 | . . . . . . . . . . . 1 . 11 . . . . . 3 . . . 11 . . . . 5 . . . . 1 . . . Part Schematic 14 | . . . . . . . . . . . . . 9 . . . . 1 . . . . . . . . . 4 . . . . . . . . Robot Schematic 4 | . . . . . . . . . . . . . 4 . . . . . . . . . . . . . . . . . . . . . . . Robot Analysis 12 | . 4 . . . 1 . 3 . . . . . . . . . . . . . . . . . . . . 4 . . . . . . . . Prototype ID Bank 19 | . 1 . 2 . 2 . 3 . . . . . 3 . . . . 1 . . . . . . . . . 4 . . 2 . 1 . . . Open Door 3 | . . . . . . . . . . . 1 . . . . . . . . . . . 1 . . . 1 . . . . . . . . . Level Access Points 2 | . 1 . 1 . . . . . . . . . . . . . . . . . . . . . . . . . . . . . . . . . Branch Access Points 8 | . 1 . 1 . 1 . . . . . . . . . 1 . 1 . . 1 . . . . 1 . . . . 1 . . . . . . Emergency Access Points 2 | . . . . . . . . 1 . . . . . . . . . . . . . . . . . . . . . . . . . . . 1 Terminal Index 5 | . . . 2 . . . 1 . . 1 . . . . . . . . . . . . . . 1 . . . . . . . . . . . Alert Level 13 | . 2 . 1 . 3 . 1 . 1 1 . . . . . . . . . . . . . . 1 . . . . . 1 . 1 . . 1 Unreport Threat 6 | . 1 . 1 . 1 . 1 . . . . . . . . . . 1 . . . . . . . . . . . . . . . 1 . . Locate Traps 4 | . 1 . 1 . . . 2 . . . . . . . . . . . . . . . . . . . . . . . . . . . . . Dispatch Records 1 | . . . 1 . . . . . . . . . . . . . . . . . . . . . . . . . . . . . . . . . Maintenance Status 1 | . . . . . . . . . . . . . . . . . . 1 . . . . . . . . . . . . . . . . . . Surveillance Status 1 | . 1 . . . . . . . . . . . . . . . . . . . . . . . . . . . . . . . . . . . Patrol Status 1 | . . . 1 . . . . . . . . . . . . . . . . . . . . . . . . . . . . . . . . . Recall Investigation 1 | . 1 . . . . . . . . . . . . . . . . . . . . . . . . . . . . . . . . . . . Recall Reinforcements 2 | . . . 1 . . . 1 . . . . . . . . . . . . . . . . . . . . . . . . . . . . . Hauler Manifests 4 | . 1 . 1 . 1 . 1 . . . . . . . . . . . . . . . . . . . . . . . . . . . . . Registered Components 3 | . 1 . 1 . . . 1 . . . . . . . . . . . . . . . . . . . . . . . . . . . . . Registered Prototypes 2 | . . . 2 . . . . . . . . . . . . . . . . . . . . . . . . . . . . . . . . . Zone Layout 6 | . 1 . . . . . 1 . . . . . . . . . . 1 . . . . . . 2 . . . . . 1 . . . . . Security Stations 1 | . . . . . . 1 . . . . . . . . . . . . . . . . . . . . . . . . . . . . . . Disengage Seal 1 | . . . . . . . . . . . . . . . . . . . . . . . . . . . . . . . . . . . . 1 Fabricator Hacks 8 | . . . . . . . . . . 2 . . . . 2 . . . . . . . . . . . . . . 2 . 2 . . . . Network Status 3 | . . . . . . . . . . 2 . . . . 1 . . . . . . . . . . . . . . . . . . . . . Load Schematic 2 | . . . . . . . . . . . . . . . . . . . . . . . . . . . . . . 1 . 1 . . . . Build 3 | . . . . . . . . . . . . . . . 1 . . . . . . . . . . . . . . 1 . 1 . . . . Repair Station Hacks 31 | . . . 3 . 14 . 6 . 8 . . . . . . . . . . . . . . . . . . . . . . . . . . . Scan Component 16 | . . . 2 . 7 . 3 . 4 . . . . . . . . . . . . . . . . . . . . . . . . . . . Repair 15 | . . . 1 . 7 . 3 . 4 . . . . . . . . . . . . . . . . . . . . . . . . . . . Recycling Unit Hacks . | . . . . . . . . . . . . . . . . . . . . . . . . . . . . . . . . . . . . . Scanalyzer 23 | . . . 3 . 5 . . . 1 3 . . . . . . . . . 2 . . . . 1 . . . . 3 2 . 3 . . . Insert Component 1 | . . . . . 1 . . . . . . . . . . . . . . . . . . . . . . . . . . . . . . . Analyze 1 | . . . . . 1 . . . . . . . . . . . . . . . . . . . . . . . . . . . . . . . Retrieve Study 21 | . . . 3 . 3 . . . 1 3 . . . . . . . . . 2 . . . . 1 . . . . 3 2 . 3 . . . Garrison Access Hacks 7 | . . . . . 2 . 1 . . 1 . . . . . . . . . 2 . . . . . . . . . . . 1 . . . . Unlock Access 2 | . . . . . 1 . 1 . . . . . . . . . . . . . . . . . . . . . . . . . . . . . Seal Access 4 | . . . . . . . . . . 1 . . . . . . . . . 2 . . . . . . . . . . . 1 . . . . Coupler Status 1 | . . . . . 1 . . . . . . . . . . . . . . . . . . . . . . . . . . . . . . . Unauthorized Hacks 76 | . 3 . 18 . 9 . 10 1 1 8 . . . . 6 . 1 1 . . . . . . 5 . . . . 2 2 . . 5 . 4 Terminals 67 | . 3 . 18 . 9 . 10 1 1 2 . . . . 6 . 1 1 . . . . . . 5 . . . . 1 2 . . 4 . 3 Track 3 | . . . 2 . . . . . . . . . . . . . . . . . . . . . 1 . . . . . . . . . . . Assimilate 2 | . . . . . . . . . . . . . . . . . . . . . . . . . . . . . . . . . . 2 . . Botnet 33 | . 2 . 5 . 4 . 3 1 1 1 . . . . 3 . 1 1 . . . . . . 3 . . . . 1 2 . . 2 . 3 Disrupt 1 | . . . 1 . . . . . . . . . . . . . . . . . . . . . . . . . . . . . . . . . Operators 5 | . 1 . 1 . . . 2 . . . . . . . . . . . . . . . . . 1 . . . . . . . . . . . Skim 23 | . . . 9 . 5 . 5 . . 1 . . . . 3 . . . . . . . . . . . . . . . . . . . . . Fabricators 7 | . . . . . . . . . . 6 . . . . . . . . . . . . . . . . . . . 1 . . . . . . Report 1 | . . . . . . . . . . 1 . . . . . . . . . . . . . . . . . . . . . . . . . . Liberate 2 | . . . . . . . . . . 2 . . . . . . . . . . . . . . . . . . . . . . . . . . Fabnet 2 | . . . . . . . . . . 2 . . . . . . . . . . . . . . . . . . . . . . . . . . Haulers 1 | . . . . . . . . . . 1 . . . . . . . . . . . . . . . . . . . . . . . . . . Overload 1 | . . . . . . . . . . . . . . . . . . . . . . . . . . . . . . 1 . . . . . . Repair Stations 2 | . . . . . . . . . . . . . . . . . . . . . . . . . . . . . . . . . . 1 . 1 Patch 2 | . . . . . . . . . . . . . . . . . . . . . . . . . . . . . . . . . . 1 . 1 Recycling Units . | . . . . . . . . . . . . . . . . . . . . . . . . . . . . . . . . . . . . . Scanalyzers . | . . . . . . . . . . . . . . . . . . . . . . . . . . . . . . . . . . . . . Garrison Access . | . . . . . . . . . . . . . . . . . . . . . . . . . . . . . . . . . . . . . Data Cores Recovered 8 | . . . 2 . 2 . 1 . 1 . . . . . 1 . . 1 . . . . . . . . . . . . . . . . . . Used 4 | . . . 1 . . . 1 . . . . . . . 1 . . 1 . . . . . . . . . . . . . . . . . . Hacking Detections 114 | . 7 . 9 . 12 2 10 2 4 5 . . . . 6 . 2 3 3 4 . . . . 7 . . . . 6 4 2 6 9 4 7 Full Trace Events 5 | . . . . . . . . . . . . . . . 1 . . . . . . . . . . . . . . 1 . 1 1 1 . . Feedback Events 1 | . . . . . . . . . . . . . . . . . . . . . . . . . . . . . . . . . . 1 . . Corruption 1 | . . . . . . . . . . . . . . . . . . . . . . . . . . . . . . . . . . 1 . . Feedback Blocked . | . . . . . . . . . . . . . . . . . . . . . . . . . . . . . . . . . . . . . Robot Schematics Acquired 4 | . . . . . . . . . . . . . 4 . . . . . . . . . . . . . . . . . . . . . . . Robots Built . | . . . . . . . . . . . . . . . . . . . . . . . . . . . . . . . . . . . . . Authchips . | . . . . . . . . . . . . . . . . . . . . . . . . . . . . . . . . . . . . . Time . | . . . . . . . . . . . . . . . . . . . . . . . . . . . . . . . . . . . . . Total Robot Build Rating . | . . . . . . . . . . . . . . . . . . . . . . . . . . . . . . . . . . . . . Part Schematics Acquired 18 | . . . . . 1 . . . . . . . 9 . . . . 1 . . . . . . . . . 4 . . . . 3 . . . Parts Built 4 | . . . . . . . . . . . . . . . 1 . . . . . . . . . . . . . . 2 . 1 . . . . Authchips . | . . . . . . . . . . . . . . . . . . . . . . . . . . . . . . . . . . . . . Time 186 | . . . . . . . . . . . . . . . 53 . . . . . . . . . . . . . . 31 . 102 . . . . Total Part Build Rating 24 | . . . . . . . . . . . . . . . 6 . . . . . . . . . . . . . . 10 . 8 . . . . Part Studies Acquired 21 | . . . 3 . 3 . . . 1 3 . . . . . . . . . 2 . . . . 1 . . . . 3 2 . 3 . . . Parts Repaired 15 | . . . 1 . 7 . 3 . 4 . . . . . . . . . . . . . . . . . . . . . . . . . . . Time 679 | . . . 26 . 371 . 114 . 168 . . . . . . . . . . . . . . . . . . . . . . . . . . . Parts Recycled . | . . . . . . . . . . . . . . . . . . . . . . . . . . . . . . . . . . . . . Recycled Matter . | . . . . . . . . . . . . . . . . . . . . . . . . . . . . . . . . . . . . . Retrieved Matter . | . . . . . . . . . . . . . . . . . . . . . . . . . . . . . . . . . . . . . Retrieved Components . | . . . . . . . . . . . . . . . . . . . . . . . . . . . . . . . . . . . . . Parts Scanalyzed 1 | . . . . . 1 . . . . . . . . . . . . . . . . . . . . . . . . . . . . . . . Part Schematics Acquired 1 | . . . . . 1 . . . . . . . . . . . . . . . . . . . . . . . . . . . . . . . Parts Damaged 1 | . . . . . 1 . . . . . . . . . . . . . . . . . . . . . . . . . . . . . . . Bothacking | -11 -10 -10 -9 -9 -8 -8 -8 -8 -8 -7 -7 -7 -7 -6 -6 -6 -6 -6 -6 -5 -5 -5 -5 -4 -4 -4 -4 -4 -3 -3 -3 -2 -2 -2 -1 -1 ------------ Run | Yrd Mat Min Mat Min Mat Gar Mat Gar Mat Fac Low Low Dat Pro Fac Was Fac Ext Cet Fac Upp Upp War Pro Fac Upp Upp Zhi Pro Res Tes Res Qua Frg Acc Com Used RIF Installer . | . . . . . . . . . . . . . . . . . . . . . . . . . . . . . . . . . . . . . Robots Hacked 8 | . . . . . . . . . . . . . . 1 . . . 2 . . . . 5 . . . . . . . . . . . . . Non-combat . | . . . . . . . . . . . . . . . . . . . . . . . . . . . . . . . . . . . . . Combat 8 | . . . . . . . . . . . . . . 1 . . . 2 . . . . 5 . . . . . . . . . . . . . Robot Hacks Applied . | . . . . . . . . . . . . . . . . . . . . . . . . . . . . . . . . . . . . . Relay Couplers Released 42 | . . . . . . 17 . 20 . . . . . . . . . . . . . . . . . . . . . 3 . 2 . . . . Machine Destruction 39 | . . . . . . 17 . 17 . . . . . . . . . . . . . . . . . . . . . 3 . 2 . . . . Programmers 3 | . . . . . . . . 3 . . . . . . . . . . . . . . . . . . . . . . . . . . . . Fabnet Peak Effective % 6 | . . . . . . . . . . . . . . 6 6 6 6 6 6 2 2 2 2 . . . . . . . . . . . . . Autooverrided 8 | . . . . . . . . . . . . . . 1 . . . 2 . . . . 5 . . . . . . . . . . . . . Robots Rewired 16 | . . . . . . . . 3 . . . 2 . . . . . 10 . . . . . . . . . . . . 1 . . . . . Allies Hacked . | . . . . . . . . . . . . . . . . . . . . . . . . . . . . . . . . . . . . . Hacks Repelled . | . . . . . . . . . . . . . . . . . . . . . . . . . . . . . . . . . . . . . Allies | -11 -10 -10 -9 -9 -8 -8 -8 -8 -8 -7 -7 -7 -7 -6 -6 -6 -6 -6 -6 -5 -5 -5 -5 -4 -4 -4 -4 -4 -3 -3 -3 -2 -2 -2 -1 -1 -------- Run | Yrd Mat Min Mat Min Mat Gar Mat Gar Mat Fac Low Low Dat Pro Fac Was Fac Ext Cet Fac Upp Upp War Pro Fac Upp Upp Zhi Pro Res Tes Res Qua Frg Acc Com Total Allies 59 | . . 3 . . . . . 3 . . . 2 . 2 . 19 . 17 5 . . . 5 . . . . . . . 1 . . 2 . . Largest Group 19 | . . 3 3 . . . . 3 . . . 2 . 1 1 19 10 14 14 12 . . 1 . . . . . . . 1 1 1 2 . . Highest-Rated Group 834 | . . 80 80 . . . . 15 . . . 46 . 96 96 702 406 509 834 782 . . 29 . . . . . . . 150 150 150 71 . . Highest-Rated Ally 159 | . . 31 31 . . . . 5 . . . 30 . 96 96 50 50 159 159 159 . . 29 . . . . . . . 150 150 150 45 . . Initial Warlord ECA Mod 14 | . . . . . . . 6 6 14 13 13 13 13 12 12 11 11 11 11 10 10 10 10 9 9 9 9 9 8 8 8 7 7 7 6 6 Warlord Squad Rendezvous 1 | . . . . . . . . . . . . . . . 1 . . . . . . . . . . . . . . . . . . . . . Dakka 1 | . . . . . . . . . . . . . . . 1 . . . . . . . . . . . . . . . . . . . . . Total Orders . | . . . . . . . . . . . . . . . . . . . . . . . . . . . . . . . . . . . . . Ally Attacks 476 | . . 6 29 . . . . 9 . . . 8 . 8 9 126 2 109 86 48 . . 10 . . . . . . . . 19 7 . . . Total Damage 14277 | . . 127 398 . . . . 44 . . . 148 . 129 348 4767 22 2472 2538 1223 . . 182 . . . . . . . . 1467 412 . . . Kills 69 | . . 2 7 . . . . . . . . 2 . . 1 9 . 18 10 10 . . . . . . . . . . . 9 1 . . . Allies Corrupted 3 | . . . . . . . . . . . . . . . 1 . 1 . . . . . . . . . . . . . . . 1 . . . Allies Melted . | . . . . . . . . . . . . . . . . . . . . . . . . . . . . . . . . . . . . . Intel | -11 -10 -10 -9 -9 -8 -8 -8 -8 -8 -7 -7 -7 -7 -6 -6 -6 -6 -6 -6 -5 -5 -5 -5 -4 -4 -4 -4 -4 -3 -3 -3 -2 -2 -2 -1 -1 ------- Run | Yrd Mat Min Mat Min Mat Gar Mat Gar Mat Fac Low Low Dat Pro Fac Was Fac Ext Cet Fac Upp Upp War Pro Fac Upp Upp Zhi Pro Res Tes Res Qua Frg Acc Com Active Infowar (turns) 18010 | 32 1601 446 1955 129 1665 335 522 62 . 347 88 220 . 243 529 113 571 1063 449 1488 65 105 1186 225 426 98 145 100 106 423 133 1207 433 212 362 926 Optics 8955 | . . . . . . . . . . . . . . 119 529 113 571 976 . 516 65 105 1186 225 405 98 145 100 106 423 133 1207 433 212 362 926 Sensors 7534 | . . . . . 1 . . . . . . . . 151 526 113 571 1063 449 574 . . 1025 225 385 . . . . . . 1075 431 177 362 406 Traps 339 | . . . . . . . . . . . . . . . . . . . . . . . . . 339 . . . . . . . . . . . Seismic 7778 | 32 1601 446 1955 129 1665 335 522 62 . 347 88 220 . 92 . . . . . . . . . . . . . . . . . . . . . 284 Cloaking 1458 | . . . . . . . . . . . . . . . . . . . . . . . 62 203 123 6 127 100 106 404 133 194 . . . . Jamming 3015 | . . . . . . . . . . . . . . . . . . . . 1322 . . . . . . . . . . . . 433 212 362 686 ECM 140 | . . . . . . . . . . . . . . . . . . . . . . . 1 . 137 . 2 . . . . . . . . . Robot Analysis Total 12 | . 4 . . . 1 . 3 . . . . . . . . . . . . . . . . . . . . 4 . . . . . . . . Derelict Logs Recovered 9 | . . 1 . . . . . . . . 2 . . 1 . . . . . . 1 . . 1 . 1 2 . . . . . . . . . Drone Launches . | . . . . . . . . . . . . . . . . . . . . . . . . . . . . . . . . . . . . . Drone Recoveries . | . . . . . . . . . . . . . . . . . . . . . . . . . . . . . . . . . . . . . Exploration | -11 -10 -10 -9 -9 -8 -8 -8 -8 -8 -7 -7 -7 -7 -6 -6 -6 -6 -6 -6 -5 -5 -5 -5 -4 -4 -4 -4 -4 -3 -3 -3 -2 -2 -2 -1 -1 ------------- Run | Yrd Mat Min Mat Min Mat Gar Mat Gar Mat Fac Low Low Dat Pro Fac Was Fac Ext Cet Fac Upp Upp War Pro Fac Upp Upp Zhi Pro Res Tes Res Qua Frg Acc Com Turns Passed 26982 | 230 1659 446 2628 129 2459 1416 1672 1276 975 1276 589 727 133 661 529 113 571 1063 451 1730 162 105 1186 225 426 98 145 100 106 423 133 1207 433 212 362 926 Spaces Moved 24332 | 118 668 201 1412 87 1116 692 665 655 433 737 370 395 85 355 904 219 323 1253 291 1019 430 299 1014 572 875 240 368 249 341 1051 393 2597 1037 466 986 1416 Core 365 | 6 . . . . . . . . . . . . . 174 138 . . 36 1 2 . . 3 . . . . . . . 1 . . . . 4 Treads 8263 | 112 668 84 1080 87 1116 692 665 655 433 737 370 395 85 181 . . . . 52 851 . . . . . . . . . . . . . . . . Legs 5 | . . . . . . . . . . . . . . . . . . . 5 . . . . . . . . . . . . . . . . . Wheels 449 | . . 117 332 . . . . . . . . . . . . . . . . . . . . . . . . . . . . . . . . . Hover 7 | . . . . . . . . . . . . . . . . . . . . . . . . . . . . . . . . . . . . 7 Flight 15243 | . . . . . . . . . . . . . . . 766 219 323 1217 233 166 430 299 1011 572 875 240 368 249 341 1051 392 2597 1037 466 986 1405 Fastest Speed 17 | 50 160 145 100 145 145 145 145 145 150 151 151 151 158 50 27 28 26 26 32 20 29 35 29 30 30 34 34 24 24 17 21 21 26 32 25 25 Average Speed 75 | 154 199 184 145 145 145 174 171 149 150 151 151 152 158 127 35 29 26 34 61 139 33 35 31 30 30 34 34 27 24 22 21 22 31 32 25 27 Slowest Speed 250 | 160 240 240 240 145 145 185 185 185 153 151 151 158 158 240 50 30 28 200 200 165 35 35 250 30 34 34 34 34 24 24 200 26 32 32 26 200 Overloaded Moves 1 | . . . . . . . . . . . . . . . . . . . . . . . . . . . . . . 1 . . . . . . Propulsion Burnouts . | . . . . . . . . . . . . . . . . . . . . . . . . . . . . . . . . . . . . . Robots Hopped 125 | . . . . . . . . . . . . . . . 7 . . 9 . 1 . 2 7 1 4 . . . . 28 6 12 18 6 12 12 Potential Cave-ins 21 | . . . . . . . . . . . . . . . . . . . . . . . 1 . . . . . . . . 4 . . . 16 Cave-ins Triggered . | . . . . . . . . . . . . . . . . . . . . . . . . . . . . . . . . . . . . . Exploration Rate (%) 53 | 5 91 36 92 24 81 60 59 70 38 22 54 50 71 58 29 89 9 92 69 29 67 57 79 67 30 44 63 61 65 39 38 58 84 21 33 37 Regions Visited 36 Branch Regions 20 Pre-discovered Areas 11 | . . . 2 . . . 2 . . . 1 . 1 . . . . . . . 1 . . . . . 1 3 . . . . . . . . Known Exits Taken 24 | . 1 1 1 1 1 . 1 . 1 1 1 . . 1 . . 1 1 1 1 . . . . 1 1 1 1 1 1 1 1 . 1 1 . Unknown Exits Taken 8 | 1 . . . . . . . . . . . 1 1 . . . . . . . 1 1 1 1 . . . . . . . . 1 . . . Scrap Searched 19 | . . . . 1 . . . . . . 1 3 . . . . . . . . 5 1 . 3 . 1 4 . . . . . . . . . Spaces Dug 242 | . 15 . 2 . 2 . . . . 5 . . . . 12 1 7 25 . 2 2 . 24 7 13 . . . . 30 1 3 4 7 21 59 Terrain Destroyed 766 | . 28 . 25 . 2 . 5 24 . 5 . . . 44 12 1 7 137 50 141 2 . 75 18 14 . . . 7 34 1 15 5 8 21 85 Melee 106 | . . . 2 . 2 . . . . 5 . . . . 12 1 7 5 . . 2 . . 5 13 . . . . 22 1 1 3 5 20 . Projectile 181 | . . . . . . . 5 4 . . . . . . . . . . . 44 . . . 13 . . . . . 12 . 14 2 3 1 83 AOE 475 | . 28 . 23 . . . . 19 . . . . . 44 . . . 132 50 97 . . 75 . . . . . 7 . . . . . . . Terrain Rammed 1 | . . . . . . . . . . . . . . . . . . . . . . . . . 1 . . . . . . . . . . . Walls Destroyed 1 | . . . . . . . . . . . . . . . . . . . . . . . . . 1 . . . . . . . . . . . Machines Disabled . | . . . . . . . . . . . . . . . . . . . . . . . . . . . . . . . . . . . . . Actions | -11 -10 -10 -9 -9 -8 -8 -8 -8 -8 -7 -7 -7 -7 -6 -6 -6 -6 -6 -6 -5 -5 -5 -5 -4 -4 -4 -4 -4 -3 -3 -3 -2 -2 -2 -1 -1 --------- Run | Yrd Mat Min Mat Min Mat Gar Mat Gar Mat Fac Low Low Dat Pro Fac Was Fac Ext Cet Fac Upp Upp War Pro Fac Upp Upp Zhi Pro Res Tes Res Qua Frg Acc Com Total 30948 | 144 848 254 1865 91 1804 820 1044 814 712 855 390 470 84 485 1043 265 794 1828 560 1200 443 296 1843 606 992 246 384 267 361 1130 433 3133 1086 502 1041 1815 Wait 4667 | 4 76 39 272 . 552 52 267 18 225 52 8 15 . 62 74 45 462 461 251 43 5 . 765 4 76 . . . 14 14 42 432 13 31 19 274 Move 24069 | 117 667 200 1411 86 1115 690 665 654 432 736 369 394 84 354 890 218 322 1235 290 1016 429 294 1002 569 866 239 367 248 340 1006 380 2577 1001 453 961 1392 Hop 103 | . . . . . . . . . . . . . . . 7 . . 8 . 1 . 2 4 1 4 . . . . 16 6 7 17 6 12 12 Pick Up 165 | 5 14 2 31 2 15 2 10 7 5 9 1 3 . 1 3 . . 3 2 11 . . 2 1 2 . 1 2 . 4 . 15 5 . 3 4 Fast Attach 149 | 7 . . 1 . 7 . 2 1 3 . . . . . 7 1 1 2 6 24 3 . 14 1 9 3 3 6 1 9 . 11 7 1 5 14 Attach 104 | . 1 2 6 1 2 1 1 5 1 2 . 2 . 9 3 . . 4 2 8 . . 10 4 3 . 3 1 1 2 . 4 5 . 4 17 Detach 65 | . . . . . . . . . . . . . . 1 2 . . 3 3 5 1 . 11 4 4 . 4 . 1 . . 7 3 . 3 13 Swap 212 | 1 8 . 31 . 16 21 18 18 4 14 4 7 . 10 8 . . 2 2 9 . . . . . . 4 1 . 7 1 14 3 . 3 6 Drop 183 | 1 1 . 34 2 15 . 11 1 5 9 1 4 . 4 2 . 1 1 3 14 1 . 7 2 7 . 1 4 1 5 1 25 10 . 6 4 Fire 791 | 9 69 11 74 . 72 33 70 70 31 26 7 30 . 44 . . . 5 1 59 . . 28 13 . . . . 3 10 . 28 16 3 3 76 Melee 205 | . . . 2 . 3 4 . 7 . 6 . . . . 32 1 8 20 . . 4 . . 7 20 4 1 5 . 31 1 13 6 8 22 . Ram 1 | . . . . . . . . . . . . . . . . . . . . . . . . . 1 . . . . . . . . . . . Kick . | . . . . . . . . . . . . . . . . . . . . . . . . . . . . . . . . . . . . . Crush 38 | . 12 . 3 . 7 . . . 6 . . . . . . . . . . 10 . . . . . . . . . . . . . . . . Escape Stasis 104 | . . . . . . 17 . 2 . 1 . . . . 15 . . 43 . . . . . . . . . . . 26 . . . . . . Rewire 92 | . . . . . . . . 31 . . . 15 . . . . . 41 . . . . . . . . . . . . 2 . . . . 3 Trap . | . . . . . . . . . . . . . . . . . . . . . . . . . . . . . . . . . . . . . Miscellaneous . | . . . . . . . . . . . . . . . . . . . . . . . . . . . . . . . . . . . . . Route ------- -11/Scrapyard -10/Materials (discovered 5 exits: *Mat x3 / *Min x2) -10/Mines -9/Materials (discovered 5 exits: *Mat x3 / *Min / *Sto) -9/Mines -8/Materials (discovered 4 exits: *Fac x3 / Gar) -8/Garrison (discovered 3 exits: *Mat x3) -8/Materials (discovered 4 exits: *Fac x3 / Gar) -8/Garrison (discovered 3 exits: *Mat x3) -8/Materials (discovered 3 exits: *Fac x3) -7/Factory (discovered 2 exits: *Fac / *Low) -7/Lower Caves -7/Lower Caves -7/Data Miner -6/Proximity Caves -6/Factory (discovered 4 exits: Low x2 / *Ext x2) -6/Waste -6/Factory (discovered 4 exits: Low x2 / *Ext x2) -6/Extension (discovered 2 exits: *Fac / *Cet) -6/Cetus (discovered 2 exits: *Fac / [*Arc]) -5/Factory (discovered 2 exits: *Upp x2) -5/Upper Caves -5/Upper Caves -5/Warlord -4/Proximity Caves -4/Factory (discovered 3 exits: *Res / *Upp x2) -4/Upper Caves -4/Upper Caves -4/Zhirov -3/Proximity Caves -3/Research (discovered 4 exits: *Res / Arm / *Tes x2) -3/Testing -2/Research (discovered 4 exits: *Acc x2 / *Qua x2) -2/Quarantine (discovered 2 exits: [*Sec] / *Frg) -2/Protoforge -1/Access -1/Command (discovered 1 exit: *Sur) History --------- Turn | Location | Event 6 | -11/Scrapyard | Discovered new exit (range 16) 231 | -11/Scrapyard | Entered Materials 308 | -10/Materials | Build established: Mutant 487 | -10/Materials | Discovered new exit (range 8) 638 | -10/Materials | Discovered new exit (range 13) 693 | -10/Materials | Discovered new exit (range 12) 878 | -10/Materials | Discovered new exit (range 4) 925 | -10/Materials | Central database locked down 925 | -10/Materials | Identified exit to Mines 925 | -10/Materials | Identified exit to Materials 1890 | -10/Materials | Entered Mines 1902 | -10/Mines | Learned Materials stockpile data 1908 | -10/Mines | Assembled infested the area 2259 | -10/Mines | Received a Mining Laser from a helpful Derelict 2282 | -10/Mines | Discovered exit to Materials (range 7) 2336 | -10/Mines | Entered Materials 2336 | -9/Materials | Accompanied by 3 allies 2336 | -9/Materials | Evolved 2 slots: Propulsion x1, Utility x1 2341 | -9/Materials | Led the pair of lost Derelicts to an unsafe place 2667 | -9/Materials | Lost 3 parts (1u2w) 2703 | -9/Materials | Central database locked down 2703 | -9/Materials | Identified exit to Mines 2703 | -9/Materials | Identified exit to Storage 2712 | -9/Materials | Discovered new exit (range 16) 3153 | -9/Materials | Learned Storage trap positions 3186 | -9/Materials | Learned Storage stockpile data 3210 | -9/Materials | Learned Storage security intel 3225 | -9/Materials | Learned location of Storage (-9) 3285 | -9/Materials | Learned 4 Recycling zone layouts 3382 | -9/Materials | Repaired Seismic Detector 3534 | -9/Materials | Identified exit to Materials 4017 | -9/Materials | Build established: Scavenger-Mutant 4845 | -9/Materials | Build established: Mutant 4964 | -9/Materials | Entered Mines 4985 | -9/Mines | Discovered exit to Materials (range 15) 4988 | -9/Mines | Met a Derelict bent on vengeance 5028 | -9/Mines | Found a damaged Exp. Sensor Array with a note attached 5033 | -9/Mines | Found Prototype Device 5093 | -9/Mines | Entered Materials 5093 | -8/Materials | Evolved 2 slots: Utility x1, Weapon x1 5094 | -8/Materials | Identified Exp. Sensor Array 5468 | -8/Materials | Build established: Gunner 6162 | -8/Materials | Discovered new exit (range 3) 6314 | -8/Materials | Repaired Gauss Rifle 6367 | -8/Materials | Repaired Imp. Assault Rifle 6524 | -8/Materials | Identified exit to Factory 6537 | -8/Materials | Central database locked down 6555 | -8/Materials | Learned Storage terminal intel 6574 | -8/Materials | Learned Factory fabricator intel 6585 | -8/Materials | Learned 4 Lower Caves zone layouts 6586 | -8/Materials | Learned Factory trap positions 6598 | -8/Materials | Learned location of 1 exit from Lower Caves 6621 | -8/Materials | Learned location of 1 exit from Storage 7267 | -8/Materials | Repaired Broken Exp. Sensor Array 7306 | -8/Materials | Repaired Adv. Treads+ 7346 | -8/Materials | Repaired Adv. Treads+ 7385 | -8/Materials | Repaired Adv. Treads+ 7413 | -8/Materials | Repaired Seismic Detector 7446 | -8/Materials | Identified exit to Garrison 7552 | -8/Materials | Entered Garrison 7600 | -8/Garrison | Triggered checkpoint 7617 | -8/Garrison | Garrison Relay disabled 7682 | -8/Garrison | Triggered checkpoint 7892 | -8/Garrison | Discovered new exit (range 8) 7924 | -8/Garrison | Learned Materials security intel 7944 | -8/Garrison | Triggered checkpoint 7993 | -8/Garrison | Garrison Relay disabled 8197 | -8/Garrison | Discovered new exit (range 14) 8272 | -8/Garrison | Garrison Relay disabled 8336 | -8/Garrison | Triggered checkpoint 8406 | -8/Garrison | Triggered checkpoint 8489 | -8/Garrison | Garrison Relay disabled 8525 | -8/Garrison | Discovered new exit (range 14) 8616 | -8/Garrison | Triggered checkpoint 8833 | -8/Garrison | Attempted to access garrison exit controls, blocked by remote lockdown 8968 | -8/Garrison | Entered Materials 9051 | -8/Materials | Repaired Minigun+ 9195 | -8/Materials | Garrison activated, responded to threat 9411 | -8/Materials | Garrison activated, responded to threat 9485 | -8/Materials | Discovered exit to Factory (range 5) 10100 | -8/Materials | Discovered exit to Factory (range 16) 10246 | -8/Materials | Repaired Adv. Treads+ 10286 | -8/Materials | Repaired Adv. Treads+ 10424 | -8/Materials | Discovered exit to Factory (range 16) 10470 | -8/Materials | Learned location of 1 exit from Storage 10505 | -8/Materials | Learned 2 Storage zone layouts 10556 | -8/Materials | Learned Factory security intel 10640 | -8/Materials | Identified exit to Garrison 10640 | -8/Materials | Entered Garrison 10664 | -8/Garrison | Triggered checkpoint 10731 | -8/Garrison | Garrison Relay disabled 10783 | -8/Garrison | Core integrity fell below 50% 10822 | -8/Garrison | Lost 3 parts (1n1u1w) 10850 | -8/Garrison | Triggered checkpoint 10905 | -8/Garrison | Discovered new exit (range 5) 11008 | -8/Garrison | Triggered checkpoint 11049 | -8/Garrison | Lost 3 allies 11090 | -8/Garrison | Triggered checkpoint 11140 | -8/Garrison | Garrison Relay disabled 11270 | -8/Garrison | Discovered new exit (range 10) 11370 | -8/Garrison | Triggered checkpoint 11441 | -8/Garrison | Discovered new exit (range 10) 11512 | -8/Garrison | Triggered checkpoint 11530 | -8/Garrison | Garrison Relay disabled 11570 | -8/Garrison | Garrison Relay disabled 11916 | -8/Garrison | Entered Materials 11983 | -8/Materials | Repaired Adv. Treads+ 12022 | -8/Materials | Repaired Adv. Treads+ 12084 | -8/Materials | Repaired Enh. Autogun 12117 | -8/Materials | Repaired Cooling System 12304 | -8/Materials | Central database locked down 12600 | -8/Materials | Discovered exit to Factory (range 15) 12790 | -8/Materials | Garrison activated, responded to threat 12891 | -8/Materials | Entered Factory 12891 | -7/Factory | Evolved 2 slots: Propulsion x1, Utility x1 12892 | -7/Factory | Identified exit to Lower Caves 12893 | -7/Factory | Loaded intel: 88 trap records 12895 | -7/Factory | Loaded intel: 6 fabricator locations 14042 | -7/Factory | Discovered new exit (range 16) 14167 | -7/Factory | Entered Lower Caves 14168 | -7/Lower Caves | Identified exit to Lower Caves 14173 | -7/Lower Caves | Met a Warlord Commander 14174 | -7/Lower Caves | Learned location of Warlord (-5) 14175 | -7/Lower Caves | Warlord Commander delivered Encrypted Comm Array 14179 | -7/Lower Caves | Found Encrypted Comm Array 14276 | -7/Lower Caves | Learned Factory emergency access door positions 14312 | -7/Lower Caves | Attracted the attention of an 0b10 checkpoint 14514 | -7/Lower Caves | Learned Factory terminal intel 14756 | -7/Lower Caves | Entered another Lower Caves area 15003 | -7/Lower Caves | Attracted the attention of an 0b10 outpost 15159 | -7/Lower Caves | Attracted the attention of an 0b10 checkpoint 15453 | -7/Lower Caves | Discovered new exit (range 6) 15483 | -7/Lower Caves | Entered Data Miner 15483 | -7/Data Miner | Discovered new exit (range 6) 15514 | -7/Data Miner | Met Data Miner 15550 | -7/Data Miner | Learned location of Section 7 (-2) 15550 | -7/Data Miner | Acquired the access code to Warlord's prototype stash 15577 | -7/Data Miner | Received God Mode back door access code from Data Miner 15616 | -7/Data Miner | Entered Proximity Caves 15695 | -6/Proximity Caves | Lost 3 parts (2n1w) 15709 | -6/Proximity Caves | Spotter reported a threat 15800 | -6/Proximity Caves | Lost 3 parts (2n1w) 15975 | -6/Proximity Caves | Build established: Scientist-Gunner 16036 | -6/Proximity Caves | Spotted B-75 Beast 16117 | -6/Proximity Caves | Core integrity fell below 50% 16121 | -6/Proximity Caves | Escorted by Enhanced Grunt 16121 | -6/Proximity Caves | Destroyed B-75 Beast 16144 | -6/Proximity Caves | Lost 10 parts (1p2n2u5w) 16208 | -6/Proximity Caves | Learned Factory stockpile data 16245 | -6/Proximity Caves | Discovered new exit (range 3) 16246 | -6/Proximity Caves | Identified exit to Factory 16277 | -6/Proximity Caves | Entered Factory 16277 | -6/Factory | Accompanied by 1 ally 16277 | -6/Factory | Evolved 2 slots: Propulsion x2 16278 | -6/Factory | Identified exit to Extension 16281 | -6/Factory | Loaded intel: 28 terminal locations 16457 | -6/Factory | Build established: Hacker-Scout 16556 | -6/Factory | Joined by Warlord Dakka squad 16573 | -6/Factory | Identified exit to Lower Caves 16650 | -6/Factory | Fabricated Adv. Hacking Suite (x1) 16696 | -6/Factory | Incoming investigation squad redirected 16771 | -6/Factory | Found Prototype Launcher 16771 | -6/Factory | Identified Scatter Rocket Array 16775 | -6/Factory | Found Scatter Rocket Array 16806 | -6/Factory | Sucked down chute 16806 | -6/Factory | Entered Waste 16810 | -6/Waste | Spotted C-40 Crusher 16818 | -6/Waste | Spotted C-40 Crusher 16821 | -6/Waste | EMP discharged 16822 | -6/Waste | Spotted C-40 Crusher 16827 | -6/Waste | Met Warlord forces unprepared to attack 16839 | -6/Waste | Allies destroyed C-40 Crusher 16839 | -6/Waste | Spotted C-40 Crusher 16840 | -6/Waste | Spotted C-40 Crusher 16843 | -6/Waste | Allies destroyed C-40 Crusher 16845 | -6/Waste | Allies destroyed C-40 Crusher 16851 | -6/Waste | Allies destroyed C-40 Crusher 16854 | -6/Waste | Spotted C-40 Crusher 16856 | -6/Waste | Allies destroyed C-40 Crusher 16860 | -6/Waste | Discovered new exit (range 14) 16864 | -6/Waste | Identified exit to Factory 16890 | -6/Waste | Allies destroyed C-40 Crusher 16915 | -6/Waste | Lost 8 allies 16919 | -6/Waste | Entered Factory 16919 | -6/Factory | Accompanied by 10 allies 17490 | -6/Factory | Entered Extension 17490 | -6/Extension | Accompanied by 4 allies 17527 | -6/Extension | Rescued a captive Derelict 17560 | -6/Extension | Rescued A7 18085 | -6/Extension | Incoming investigation squad redirected 18112 | -6/Extension | Spotted B-75 Beast 18115 | -6/Extension | Spotted B-75 Beast 18135 | -6/Extension | Destroyed B-75 Beast 18165 | -6/Extension | Disrupted transfer network 18165 | -6/Extension | Allies destroyed B-75 Beast 18347 | -6/Extension | Rescued a captive Derelict 18348 | -6/Extension | Rescued a captive Derelict 18394 | -6/Extension | Rescued a captive Derelict 18455 | -6/Extension | Discovered new exit (range 10) 18460 | -6/Extension | Discovered new exit (range 6) 18462 | -6/Extension | Identified exit to Cetus 18475 | -6/Extension | Identified exit to Factory 18553 | -6/Extension | Entered Cetus 18553 | -6/Cetus | Accompanied by 14 allies (A7) 18558 | -6/Cetus | Acquired a Cetus Manufacturing Module code from A7 18583 | -6/Cetus | Spotted Cetus Guard 18583 | -6/Cetus | Spotted Cetus Guard 18583 | -6/Cetus | Spotted Cetus Guard 18584 | -6/Cetus | Spotted Cetus Guard 18596 | -6/Cetus | Allies destroyed Cetus Guard 18605 | -6/Cetus | Allies destroyed Cetus Guard 18606 | -6/Cetus | Allies destroyed Cetus Guard 18609 | -6/Cetus | Allies destroyed Cetus Guard 18626 | -6/Cetus | Started Cetus Manufacturing Module 18633 | -6/Cetus | Lost 5 allies 18651 | -6/Cetus | Manufactured an Enhanced Grunt 18676 | -6/Cetus | Manufactured an Enhanced Grunt 18701 | -6/Cetus | Manufactured an Enhanced Grunt 18726 | -6/Cetus | Manufactured an Enhanced Grunt 18751 | -6/Cetus | Manufactured an Enhanced Grunt 18768 | -6/Cetus | Build established: Commander-Sprinter 18773 | -6/Cetus | Discovered new exit (range 16) 18843 | -6/Cetus | Spotted Cetus Guard 18844 | -6/Cetus | Spotted Cetus Guard 18844 | -6/Cetus | Spotted Cetus Guard 18845 | -6/Cetus | Spotted Cetus Guard 18854 | -6/Cetus | Allies destroyed Cetus Guard 18854 | -6/Cetus | Allies destroyed Cetus Guard 18865 | -6/Cetus | Discovered exit to Factory (range 16) 18868 | -6/Cetus | Allies destroyed Cetus Guard 18871 | -6/Cetus | Allies destroyed Cetus Guard 18876 | -6/Cetus | Met Revision 17 19004 | -6/Cetus | Entered Factory 19004 | -5/Factory | Accompanied by 12 allies (A7) 19004 | -5/Factory | Evolved 2 slots: Power x1, Utility x1 19162 | -5/Factory | Build established: Commander-Mutant 19414 | -5/Factory | Unchained authorized (6S-H0T) 19450 | -5/Factory | P-70 Sage assimilated allied 76-P4X(b) 19596 | -5/Factory | Found Scatter Rocket Array 19624 | -5/Factory | Found Faulty Scatter Rocket Array 19635 | -5/Factory | Lost 3 allies 19688 | -5/Factory | Cargo convoy interrupted 19717 | -5/Factory | Destroyed 10 combat bots 19740 | -5/Factory | Found Prototype Launcher 19740 | -5/Factory | Identified Enh. Gamma Bomb Array 19743 | -5/Factory | Found Prototype Launcher 19743 | -5/Factory | Identified Point Singularity Launcher 19751 | -5/Factory | Found Prototype Launcher 19751 | -5/Factory | Identified Rocket Array 19760 | -5/Factory | Found Enh. Gamma Bomb Array 19768 | -5/Factory | Found Prototype Device 19768 | -5/Factory | Identified Exp. Transmission Jammer 19776 | -5/Factory | Found Prototype Processor 19776 | -5/Factory | Identified Exp. Core Analyzer 20042 | -5/Factory | Spotted B-75 Beast 20189 | -5/Factory | Build established: Scavenger-Tank 20504 | -5/Factory | First assault squad dispatched 20520 | -5/Factory | Identified exit to Upper Caves 20678 | -5/Factory | Lost 4 parts (2n2u) 20704 | -5/Factory | Found Point Singularity Launcher 20734 | -5/Factory | Entered Upper Caves 20744 | -5/Upper Caves | Attracted the attention of an 0b10 outpost 20762 | -5/Upper Caves | Core integrity fell below 50% 20789 | -5/Upper Caves | Lost 3 parts (3n) 20843 | -5/Upper Caves | Learned location of Armory (-3) 20872 | -5/Upper Caves | Encountered a Warlord checkpoint 20889 | -5/Upper Caves | Discovered new exit (range 15) 20896 | -5/Upper Caves | Entered another Upper Caves area 20943 | -5/Upper Caves | Attracted the attention of an 0b10 outpost 20951 | -5/Upper Caves | Attracted the attention of an 0b10 checkpoint 20968 | -5/Upper Caves | Core integrity fell below 20% 20999 | -5/Upper Caves | Discovered new exit (range 5) 21001 | -5/Upper Caves | Entered Warlord 21014 | -5/Warlord | System corruption cleaned by Quarantine Array 21021 | -5/Warlord | Discovered new exit (range 15) 21107 | -5/Warlord | Build established: Mutant 21107 | -5/Warlord | Learned Testing trap positions 21107 | -5/Warlord | Learned Research stockpile data 21108 | -5/Warlord | Learned 4 Research zone layouts 21108 | -5/Warlord | Learned 4 Command zone layouts 21108 | -5/Warlord | Learned Factory repair station intel 21108 | -5/Warlord | Learned Factory garrison access intel 21108 | -5/Warlord | Learned Armory scanalyzer intel 21108 | -5/Warlord | Learned Armory garrison access intel 21112 | -5/Warlord | Received a Watcher feed algorithm from an ecstatic Tinkerer 21122 | -5/Warlord | Opened Warlord's prototype stash 21131 | -5/Warlord | Found Prototype Processor 21131 | -5/Warlord | Identified Exp. Target Analyzer 21133 | -5/Warlord | Found Prototype Device 21133 | -5/Warlord | Identified System Purifier 21136 | -5/Warlord | Found Prototype Device 21136 | -5/Warlord | Identified Exp. Cloaking Device 21182 | -5/Warlord | Visited the Vortex Lab 21191 | -5/Warlord | Found Prototype Energy Cannon 21192 | -5/Warlord | Identified Vortex Cannon 21203 | -5/Warlord | Warlord's base attacked by MAIN.C 21203 | -5/Warlord | Met Warlord 21353 | -5/Warlord | P-70 Sage assimilated allied 1E-9NN(b) 21385 | -5/Warlord | Lost 3 allies 21444 | -5/Warlord | Spotted B-86 Titan 21529 | -5/Warlord | Lost 6 allies 21539 | -5/Warlord | Spotted Striker 21553 | -5/Warlord | Warlord forces counterattacked 21565 | -5/Warlord | Spotted Executioner 21565 | -5/Warlord | Spotted B-75 Beast 21612 | -5/Warlord | Spotted Executioner 21624 | -5/Warlord | Spotted Executioner 21625 | -5/Warlord | Build established: Sprinter 21631 | -5/Warlord | Destroyed Executioner 21774 | -5/Warlord | Lost 26 allies 21878 | -5/Warlord | Warlord base infiltrated, sounded retreat 22146 | -5/Warlord | Lost 3 allies 22187 | -5/Warlord | Entered Proximity Caves 22373 | -4/Proximity Caves | Learned Research stockpile data 22379 | -4/Proximity Caves | Spotted B-86 Titan 22407 | -4/Proximity Caves | Discovered new exit (range 19) 22412 | -4/Proximity Caves | Entered Factory 22412 | -4/Factory | Evolved 2 slots: Utility x2 22413 | -4/Factory | Loaded intel: 6 repair station locations 22414 | -4/Factory | Loaded intel: 3 garrison access locations 22523 | -4/Factory | Spotted B-86 Titan 22665 | -4/Factory | Identified exit to Upper Caves 22747 | -4/Factory | Central database locked down 22800 | -4/Factory | Spotted B-86 Titan 22803 | -4/Factory | Discovered new exit (range 14) 22838 | -4/Factory | Entered Upper Caves 22868 | -4/Upper Caves | Lost 5 parts (3n2u) 22878 | -4/Upper Caves | Learned Research machine intel 22921 | -4/Upper Caves | Discovered new exit (range 15) 22936 | -4/Upper Caves | Identified exit to Upper Caves 22936 | -4/Upper Caves | Entered another Upper Caves area 22988 | -4/Upper Caves | Spotted B-86 Titan 23069 | -4/Upper Caves | Discovered new exit (range 5) 23070 | -4/Upper Caves | Identified exit to Zhirov 23081 | -4/Upper Caves | Entered Zhirov 23081 | -4/Zhirov | Discovered new exit (range 3) 23088 | -4/Zhirov | Met Zhirov 23092 | -4/Zhirov | Build established: Mutant 23094 | -4/Zhirov | Learned location of Quarantine (-2) 23094 | -4/Zhirov | Learned location of Testing (-3) 23094 | -4/Zhirov | Learned location of Command (-1) 23097 | -4/Zhirov | Zhirov requested help retrieving the SGEMP Prototype 23103 | -4/Zhirov | Found Alien Artifact 23103 | -4/Zhirov | Identified Integrated Dissipator 23103 | -4/Zhirov | Installed Integrated Dissipator, increased core heat dissipation (+20) 23181 | -4/Zhirov | Identified exit to Proximity Caves 23181 | -4/Zhirov | Entered Proximity Caves 23282 | -3/Proximity Caves | Discovered new exit (range 18) 23286 | -3/Proximity Caves | Identified exit to Research 23287 | -3/Proximity Caves | Entered Research 23287 | -3/Research | Evolved 2 slots: Propulsion x1, Utility x1 23290 | -3/Research | Loaded intel: 116 machine locations 23403 | -3/Research | Build established: Sprinter 23487 | -3/Research | Revision forces began assault on 0b10 23520 | -3/Research | Fabricated Weapon Mount (x2) 23557 | -3/Research | Spotted B-86 Titan 23565 | -3/Research | Spotted B-86 Titan 23582 | -3/Research | Lost 5 parts (1p1n1u2w) 23584 | -3/Research | Discovered new exit (range 15) 23587 | -3/Research | Identified exit to Research 23616 | -3/Research | Identified exit to Armory 23616 | -3/Research | Identified exit to Testing 23710 | -3/Research | Entered Testing 23711 | -3/Testing | Loaded intel: 22 trap records 23719 | -3/Testing | Rewired PH-WQHFJD9FZX 23725 | -3/Testing | Spotted Alpha 7 23794 | -3/Testing | Discovered exit to Research (range 13) 23839 | -3/Testing | Build established: Scientist-Sprinter 23843 | -3/Testing | Entered Research 23843 | -2/Research | Accompanied by 1 ally 23843 | -2/Research | Warlord forces began assault on 0b10 23843 | -2/Research | Evolved 2 slots: Power x1, Weapon x1 23844 | -2/Research | Identified exit to Access 23844 | -2/Research | Identified exit to Quarantine 23868 | -2/Research | Distinguished unit "Cat Herders" dispatched to help 23953 | -2/Research | Research machine network offline 23966 | -2/Research | Fabricated Exp. Sensor Array? 24083 | -2/Research | Met up with Warlord 24085 | -2/Research | Discovered exit to Quarantine (range 18) 24192 | -2/Research | Borebot progress halted 24328 | -2/Research | Build established: Scientist-Scout 24342 | -2/Research | Spotted B-90 Cyclops 24349 | -2/Research | Spotted Striker 24350 | -2/Research | Spotted Executioner 24355 | -2/Research | Destroyed Executioner 24469 | -2/Research | Spotted Striker 24492 | -2/Research | Borebot progress halted 24526 | -2/Research | Spotted Executioner 24563 | -2/Research | Destroyed Executioner 24672 | -2/Research | Discovered exit to Access (range 8) 24701 | -2/Research | Spotted Executioner 24809 | -2/Research | Borebot progress halted 24843 | -2/Research | Warlord invited to help at Command 24843 | -2/Research | Given Cave Seal Controls access code 25050 | -2/Research | Entered Quarantine 25050 | -2/Quarantine | Accompanied by 1 ally 25072 | -2/Quarantine | Found Alien Artifact 25110 | -2/Quarantine | Found Alien Energy Cannon 25110 | -2/Quarantine | Identified Core Cannon 25186 | -2/Quarantine | Scanned by Researcher 25207 | -2/Quarantine | Unchained authorized (6S-H0T) 25254 | -2/Quarantine | Lost 3 allies 25404 | -2/Quarantine | Found Alien Slashing Weapon 25404 | -2/Quarantine | Identified Sigix Broadsword 25459 | -2/Quarantine | Spotted Fortress 25481 | -2/Quarantine | Discovered new exit (range 6) 25481 | -2/Quarantine | Discovered new exit (range 7) 25483 | -2/Quarantine | Entered Protoforge 25563 | -2/Protoforge | Superfortress began startup sequence 25660 | -2/Protoforge | Incoming investigation squad redirected 25683 | -2/Protoforge | Discovered exit to Access (range 4) 25695 | -2/Protoforge | Entered Access 25695 | -1/Access | Evolved 2 slots: Propulsion x1, Utility x1 26021 | -1/Access | Spotted B-99 Colossus 26037 | -1/Access | Discovered new exit (range 8) 26042 | -1/Access | Identified exit to Command 26057 | -1/Access | Entered Command 26058 | -1/Command | Identified exit to Surface 26106 | -1/Command | Disengaged cave seal 26106 | -1/Command | Derelicts emerged from the dark tunnel 26106 | -1/Command | Welcomed Warlord to Command 26173 | -1/Command | Lost 4 allies 26251 | -1/Command | Spotted Executioner 26251 | -1/Command | Spotted Executioner 26251 | -1/Command | Spotted Striker 26251 | -1/Command | Spotted Alpha 7 26251 | -1/Command | Spotted Executioner 26251 | -1/Command | Spotted Executioner 26251 | -1/Command | Spotted Striker 26251 | -1/Command | Spotted Alpha 7 26351 | -1/Command | Build established: Scientist-Sprinter 26356 | -1/Command | Attacked by Warlord forces 26356 | -1/Command | Spotted 2Q-CSC(g) 26379 | -1/Command | Destroyed Striker 26389 | -1/Command | Warlord destroyed during the assault 26418 | -1/Command | Lost 4 parts (1p2u1w) 26493 | -1/Command | Disengaged cave seal 26493 | -1/Command | Derelicts emerged from the dark tunnel 26493 | -1/Command | Spotted OE-YFA(g) 26493 | -1/Command | Spotted 0V-04Q(L) 26493 | -1/Command | Spotted Z4-07P(g) 26596 | -1/Command | Lost 4 parts (1n1u2w) 26629 | -1/Command | Spotted B-99 Colossus 26840 | -1/Command | Build established: Scavenger-Scout 26885 | -1/Command | Spotted M Guard 26923 | -1/Command | Spotted Combat Programmer 26923 | -1/Command | Spotted Combat Programmer 26924 | -1/Command | Spotted M Guard 26946 | -1/Command | System corruption reached 10% 26950 | -1/Command | Identified Subatomic Replicator 26950 | -1/Command | Used Subatomic Replicator to replicate Core Cannon 26955 | -1/Command | Met MAIN.C 26956 | -1/Command | Core integrity fell below 50% 26962 | -1/Command | 0b10 Conduit disabled 26981 | -1/Command | Core integrity fell below 20% 26983 | -1/Command | Destroyed by Combat Programmer with EMDS Last Messages --------------- 26955_ Impulse Thruster Array+ destroyed. 26955_ Med. Storage Unit destroyed. 26958_ EMDS Slug penetrates Reinforced Barrier. 26959_ Com. Battery destroyed. 26959_ Adv. Transmission Jammer destroyed. 26962_ GTH78BB/P>LCRTQ JDYOL33=H|4ANFB3Y 26962_ Imp. Diametric Drive destroyed. 26962_ 0b10 Conduit disabled. 26965_ EMDS Slug penetrates 0b10 Conduit. 26966_ Imp. Antigrav System destroyed. 26967_ EMDS Slug penetrates MAIN.C. 26969_ Penetrated by EMDS Slug. 26969_ Imp. Armor Integrity Analyzer destroyed. 26973_ Com. HERF Cannon destroyed. 26974_ EMDS Slug penetrates 0b10 Conduit. 26977_ Penetrated by EMDS Slug. 26980_ P-80 Master resets Combat Programmer, system corruption cleaned. 26981_ Penetrated by EMDS Slug. 26983_ System corrupted: Heat flow error (+193). 26983_ Penetrated by EMDS Slug. Map ----- +----------------------------------------------------+ | ?????????????????????????????????????????????????? | | ?????????????????????????????????????????????????? | | ?????????????????????????????????????????????????? | | ?????????????????????????????????????????????????? | | ?????????????????????????????????????????????????? | | ?????????????????????????????????????????????????? | | ?????????????????????????????????????????????????? | | ?????????????????????????????????????????????????? | | ?????????????????????????????????????????????????? | | ?????????????????????????????????????????????????? | | ?????????????????????????????????????????????????? | | ?????????????????????????????????????????????????? | | ?????????????????????????????????????????????????? | | ?????????????????????????????????????????????????? | | ?????????????????????????????????????????????????? | | ????????????????????????????????????????????##???? | | ??????????????###################???????????# ##? | | ?????????????""""" """" #????????????#"""# | | ?????????????? "" #??????????????# | | ??????????????"" "" ################## | | ????????????"""""""""" /Yp | | ????????????? " """ pp | | ???????????????"""""" =p | | ???????????????"""""" p################## | | ??????????# " """""" #????????????????? | | ??????????# " ""MMM @ #????????????????? | | ??????????# " " MMM "#????????????????? | | ??????????#""""""""" MMM """#????????????????? | | ?????"" "" """"#????????????????? | | ????# """" """"""#????????????????? | | ????# " " " " #????????????????? | | ####+#????# " " " #????????????????? | | ????" " " " """" " #????????????????? | | ????" """ " " """" #????????????????? | | ????" " " " " #????????????????? | | ????# """?"""""" " #????????????????? | | # ????# " ??" " """"""""#????????????????? | | # ????# ?????????? " " #????????????????? | | # ????#???????????###########????????????????? | | # ???????????????????????????????????????????? | | # ???????????????????????????????????????????? | | # ???????????????????????????????????????????? | | # ???????????????????????????????????????????? | | # ???????????????????????????????????????????? | | # ???????????????????????????????????????????? | | # #???????????????????????????????????????????? | | #???????????????????????????????????????????? | | "???????????????????????????????????????????? | | "???????????????????????????????????????????? | | Y???????????????????????????????????????????? | +----------------------------------------------------+ Best States ------------- Heat Dissipation 72 Energy Generation 55 Energy Capacity 450 Matter Stores 300 Matter Capacity 300 Sight Range 23 Robot Scan Range 20 Terrain Scan Density 10 ECM Strength 2 Jamming Range 22 Cloak Strength 4 Power Amplification 30 Additional Mass Support 12 Base Temperature (-) 200 Armor Coverage 225 Utility Shielding 90 Phase Shifting 15 Evasion (%) 80 Targeting Accuracy 20 Melee Accuracy 5 Target Analysis 10 Core Analysis 8 Armor Integrity Analysis 40 Recoil Reduction 6 Kinecelleration 30 Force Boost 20 Offensive Hacking 24 Defensive Hacking 12 Authchip Count 1 Item Schematics ----------------- Exp. Sensor Array | -8/Materials | Scanalyzed Combat Drone Bay | -7/Data Miner | Free Lgt. Regenerative Plating | -7/Data Miner | Free Cld. Cesium-ion Thruster | -7/Data Miner | Free Gravity Neutralizer | -7/Data Miner | Free Com. Ion Cannon | -7/Data Miner | Free Nuclear Pulse Array | -7/Data Miner | Free Adv. Shield Generator | -7/Data Miner | Free Hyp. Gauss Cannon | -7/Data Miner | Free Adv. Particle Charger | -7/Data Miner | Free Weapon Mount | -6/Extension | Hacked Assault Drone Bay | -4/Zhirov | Free Exp. Heat Sink | -4/Zhirov | Free Exp. Optical Array | -4/Zhirov | Free Imp. Arc Thrower | -4/Zhirov | Free Stealth Drone Bay | -2/Quarantine | Archive Com. Mass Driver | -2/Quarantine | Archive Cld. Q-thruster | -2/Quarantine | Archive Robot Schematics ------------------ W-25 Informer | -7/Data Miner | Free L-41 Fighter | -7/Data Miner | Free G-47 Trooper | -7/Data Miner | Free S-27 Virus | -7/Data Miner | Free Fabricated ------------ Adv. Hacking Suite | x1 | -6/Factory | Preloaded Weapon Mount | x2 | -3/Research Exp. Sensor Array | x1 | -2/Research Repaired ---------- Seismic Detector | 35% | -9/Materials Gauss Rifle | 19% | -8/Materials Imp. Assault Rifle | 12% | -8/Materials Exp. Sensor Array | 62% | -8/Materials | Broken Adv. Treads | 35% | -8/Materials Adv. Treads | 59% | -8/Materials Adv. Treads | 60% | -8/Materials Seismic Detector | 35% | -8/Materials Minigun | 4% | -8/Materials Adv. Treads | 12% | -8/Materials Adv. Treads | 5% | -8/Materials Adv. Treads | 11% | -8/Materials Adv. Treads | 27% | -8/Materials Enh. Autogun | 16% | -8/Materials Cooling System | 30% | -8/Materials Studied --------- Hvy. Assault Rifle | -9/Materials | Hacked Lgt. Treads | -9/Materials | Hacked Com. Wheel | -9/Materials | Hacked Minigun | -8/Materials | Hacked Adv. Treads | -8/Materials | Hacked Imp. Treads | -8/Materials | Hacked Arm. Treads | -8/Materials | Hacked Gauss Rifle | -7/Factory | Hacked Great Axe | -7/Factory | Hacked Imp. Grenade Launcher | -7/Factory | Hacked Lrn. Proton Cannon | -5/Factory | Hacked Neutrino Core | -5/Factory | Hacked Impulse Thruster Array | -4/Factory | Hacked Hvy. Gauss Cannon | -3/Research | Hacked Q-thruster | -3/Research | Hacked Mic. Antimatter Reactor | -3/Research | Hacked Lance | -3/Testing | Hacked Hyp. Railgun | -3/Testing | Hacked Field Propulsion Array | -2/Quarantine | Hacked Linear Accelerator | -2/Quarantine | Hacked Enh. Hardcell Cannon | -2/Quarantine | Hacked Alien Tech Used ----------------- Integrated Dissipator Core Cannon Sigix Broadsword Subatomic Replicator Achievements -------------- Great Explorer Meet Your Maker Physics Hates This One Trick Professional Mechanic Showdown Tailor-made The Better Part Of Valor Challenges ------------ None Game ------ Seed ImprovedJammingBarrier Manual? 0 Play Time 05:16:22 Cumulative 233.1 hours Start 2025.11.14 @ 15:10:36 End 2025.11.14 @ 21:33:53 Sessions 1 Manual Loads 0 Difficulty Rogue Special Mode None Game No. 182 Rogue 182 Adventurer 0 Explorer 0 Win Type - Total 6 Types 4/0/0/2/0/0/0/0/0/0 Lore% 76 Gallery% 69 Achievement% 52 Wizard Run 0 Options --------- Layout 0 ASCII 0 Keyboard 1 Movement Numpad Keybinds 0 Fullscreen 1 Font 24/Terminus Map View 76x50 Zoom Use 0% Tactical HUD 1 Map Filters NONE Filters NONE Steam 1 RUN: 9db2ccd4-bcf9-419c-9177-0734377a647a